Workbook

Sheet 2015-1
G1: Janvier | AL1: Février | BN1: Mars | CS1: Avril | DW1: Mai | FB1: Juin
G2: 1 | H2: 2 | I2: 3 | J2: 4 | K2: 5 | L2: 6 | M2: 7 | N2: 8 | O2: 9 | P2: 10 | Q2: 11 | R2: 12 | S2: 13 | T2: 14 | U2: 15 | V2: 16 | W2: 17 | X2: 18 | Y2: 19 | Z2: 20 | AA2: 21 | AB2: 22 | AC2: 23 | AD2: 24 | AE2: 25 | AF2: 26 | AG2: 27 | AH2: 28 | AI2: 29 | AJ2: 30 | AK2: 31 | AL2: 1 | AM2: 2 | AN2: 3 | AO2: 4 | AP2: 5 | AQ2: 6 | AR2: 7 | AS2: 8 | AT2: 9 | AU2: 10 | AV2: 11 | AW2: 12 | AX2: 13 | AY2: 14 | AZ2: 15 | BA2: 16 | BB2: 17 | BC2: 18 | BD2: 19 | BE2: 20 | BF2: 21 | BG2: 22 | BH2: 23 | BI2: 24 | BJ2: 25 | BK2: 26 | BL2: 27 | BM2: 28 | BN2: 1 | BO2: 2 | BP2: 3 | BQ2: 4 | BR2: 5 | BS2: 6 | BT2: 7 | BU2: 8 | BV2: 9 | BW2: 10 | BX2: 11 | BY2: 12 | BZ2: 13 | CA2: 14 | CB2: 15 | CC2: 16 | CD2: 17 | CE2: 18 | CF2: 19 | CG2: 20 | CH2: 21 | CI2: 22 | CJ2: 23 | CK2: 24 | CL2: 25 | CM2: 26 | CN2: 27 | CO2: 28 | CP2: 29 | CQ2: 30 | CR2: 31 | CS2: 1 | CT2: 2 | CU2: 3 | CV2: 4 | CW2: 5 | CX2: 6 | CY2: 7 | CZ2: 8 | DA2: 9 | DB2: 10 | DC2: 11 | DD2: 12 | DE2: 13 | DF2: 14 | DG2: 15 | DH2: 16 | DI2: 17 | DJ2: 18 | DK2: 19 | DL2: 20 | DM2: 21 | DN2: 22 | DO2: 23 | DP2: 24 | DQ2: 25 | DR2: 26 | DS2: 27 | DT2: 28 | DU2: 29 | DV2: 30 | DW2: 1 | DX2: 2 | DY2: 3 | DZ2: 4 | EA2: 5 | EB2: 6 | EC2: 7 | ED2: 8 | EE2: 9 | EF2: 10 | EG2: 11 | EH2: 12 | EI2: 13 | EJ2: 14 | EK2: 15 | EL2: 16 | EM2: 17 | EN2: 18 | EO2: 19 | EP2: 20 | EQ2: 21 | ER2: 22 | ES2: 23 | ET2: 24 | EU2: 25 | EV2: 26 | EW2: 27 | EX2: 28 | EY2: 29 | EZ2: 30 | FA2: 31 | FB2: 1 | FC2: 2 | FD2: 3 | FE2: 4 | FF2: 5 | FG2: 6 | FH2: 7 | FI2: 8 | FJ2: 9 | FK2: 10 | FL2: 11 | FM2: 12 | FN2: 13 | FO2: 14 | FP2: 15 | FQ2: 16 | FR2: 17 | FS2: 18 | FT2: 19 | FU2: 20 | FV2: 21 | FW2: 22 | FX2: 23 | FY2: 24 | FZ2: 25 | GA2: 26 | GB2: 27 | GC2: 28 | GD2: 29 | GE2: 30
G3: Me | H3: Je | I3: Ve | J3: Sa | K3: Lu | L3: Ma | M3: Me | N3: Je | O3: Ve | P3: Sa | Q3: Di | R3: Lu | S3: Ma | T3: Me | U3: Je | V3: Ve | W3: Sa | X3: Di | Y3: Lu | Z3: Ma | AA3: Me | AB3: Je | AC3: Ve | AD3: Sa | AE3: Di | AF3: Lu | AG3: Ma | AH3: Me | AI3: Je | AJ3: Ve | AK3: Sa | AL3: Di | AM3: Lu | AN3: Ma | AO3: Me | AP3: Je | AQ3: Ve | AR3: Sa | AS3: Di | AT3: Lu | AU3: Ma | AV3: Me | AW3: Je | AX3: Ve | AY3: Sa | AZ3: Di | BA3: Lu | BB3: Ma | BC3: Me | BD3: Je | BE3: Ve | BF3: Sa | BG3: Di | BH3: Lu | BI3: Ma | BJ3: Me | BK3: Je | BL3: Ve | BM3: Sa | BN3: Di | BO3: Lu | BP3: Ma | BQ3: Me | BR3: Je | BS3: Ve | BT3: Sa | BU3: Di | BV3: Lu | BW3: Ma | BX3: Me | BY3: Je | BZ3: Ve | CA3: Sa | CB3: Di | CC3: Lu | CD3: Ma | CE3: Me | CF3: Je | CG3: Ve | CH3: Sa | CI3: Di | CJ3: Lu | CK3: Ma | CL3: Me | CM3: Je | CN3: Ve | CO3: Sa | CP3: Di | CQ3: Lu | CR3: Ma | CS3: Me | CT3: Je | CU3: Ve | CV3: Sa | CW3: Di | CX3: Lu | CY3: Ma | CZ3: Me | DA3: Je | DB3: Ve | DC3: Sa | DD3: Di | DE3: Lu | DF3: Ma | DG3: Me | DH3: Je | DI3: Ve | DJ3: Sa | DK3: Di | DL3: Lu | DM3: Ma | DN3: Me | DO3: Je | DP3: Ve | DQ3: Sa | DR3: Di | DS3: Lu | DT3: Ma | DU3: Me | DV3: Je | DW3: Ve | DX3: Sa | DY3: Di | DZ3: Lu | EA3: Ma | EB3: Me | EC3: Je | ED3: Ve | EE3: Sa | EF3: Di | EG3: Lu | EH3: Ma | EI3: Me | EJ3: Je | EK3: Ve | EL3: Sa | EM3: Di | EN3: Lu | EO3: Ma | EP3: Me | EQ3: Je | ER3: Ve | ES3: Sa | ET3: Di | EU3: Lu | EV3: Ma | EW3: Me | EX3: Je | EY3: Ve | EZ3: Sa | FA3: Di | FB3: Lu | FC3: Ma | FD3: Me | FE3: Je | FF3: Ve | FG3: Sa | FH3: Di | FI3: Lu | FJ3: Ma | FK3: Me | FL3: Je | FM3: Ve | FN3: Sa | FO3: Di | FP3: Lu | FQ3: Ma | FR3: Me | FS3: Je | FT3: Ve | FU3: Sa | FV3: Di | FW3: Lu | FX3: Ma | FY3: Me | FZ3: Je | GA3: Ve | GB3: Sa | GC3: Di | GD3: Lu | GE3: Ma
B4: HGI | J4: R | K4: R | L4: R | M4: T | N4: T | O4: Réu | Q4: Hou | R4: Hou | S4: Hou | T4: Hou | U4: Hou | V4: Hou | W4: Hou | Y4: T | Z4: T | AA4: T | AB4: T | AC4: T | AF4: T | AG4: T | AH4: T | AI4: T | AJ4: T | AL4: R | AM4: R | AN4: R | AO4: R | AP4: T | AQ4: T | AR4: Asie | AS4: Asie | AT4: Asie | AU4: Asie | AV4: Asie | AW4: Asie | AX4: Asie | AY4: Asie | AZ4: Asie | BA4: T | BB4: T | BC4: T | BD4: T | BE4: T | BG4: C | BH4: C | BI4: C | BJ4: C | BK4: C | BL4: C | BM4: C | BN4: C | BO4: C | BP4: T | BQ4: T | BR4: T | BS4: T | BV4: T | BW4: T | BX4: T | BY4: T | BZ4: T | CA4: T | CB4: T | CC4: T | CD4: T | CE4: T | CF4: T | CG4: T | CJ4: T | CK4: T | CL4: T | CM4: T | CN4: T | CQ4: T | CR4: T | CS4: T | CT4: T | CU4: T | CW4: T | CX4: Asie | CY4: Asie | CZ4: Asie | DA4: Asie | DB4: Asie | DC4: Asie | DD4: Asie | DE4: Asie | DF4: Asie | DG4: Asie | DH4: Asie | DI4: Asie | DJ4: Asie | DK4: T | DL4: T | DM4: T | DN4: T | DO4: T | DP4: T | DS4: R | DT4: T | DU4: R | DV4: R | DW4: R | DX4: R | DY4: R | DZ4: FTC | EA4: FTC | EB4: FTC | EC4: FTC | ED4: FTC | EE4: FTC | EF4: FTC | EG4: FTC | EH4: T | EI4: T | EM4: T | EN4: T | EO4: R | EP4: GVA | EQ4: GVA | ER4: R | EV4: T | EW4: T | EX4: T | EY4: T | EZ4: T | FB4: T | FC4: T | FD4: T | FE4: T | FF4: T | FI4: T | FJ4: T | FK4: T | FL4: T | FM4: T | FP4: T | FQ4: R | FR4: R | FS4: T | FT4: T | FV4: T | FW4: Asie | FX4: Asie | FY4: Asie | FZ4: Asie | GA4: Asie | GB4: Asie | GC4: Asie | GD4: Asie | GE4: Asie
B6: DNT | K6: T | L6: TT | M6: TT | N6: T | O6: T | R6: T | S6: T | T6: T | U6: T | V6: T | W6: T | Y6: T | Z6: T | AA6: T | AB6: T | AC6: R | AD6: R | AE6: R | AF6: T | AG6: T | AH6: T | AI6: T | AJ6: T | AM6: T | AN6: T | AO6: T | AP6: R | AQ6: R | AT6: T | AU6: T | AV6: T | AW6: T | AX6: T | AY6: T | AZ6: T | BA6: T | BB6: T | BC6: T | BD6: T | BE6: T | BG6: T | BH6: T | BI6: T | BJ6: T | BK6: T | BL6: T | BO6: T | BP6: T | BQ6: T | BR6: T | BS6: R | BT6: R | BU6: R | BV6: R | BW6: T | BX6: T | BY6: T | BZ6: T | CA6: R | CB6: R | CC6: R | CD6: R | CE6: R | CF6: R | CG6: R | CH6: R | CI6: R | CJ6: R | CK6: R | CL6: R | CM6: R | CN6: R | CQ6: T | CR6: T | CS6: R | CT6: R | CU6: C | CV6: R | CW6: R | CX6: R | CY6: T | CZ6: T | DA6: T | DB6: T | DE6: T | DF6: T | DG6: T | DH6: T | DI6: T | DL6: T | DM6: T | DN6: T | DO6: T | DP6: T | DS6: T | DT6: TT | DU6: T | DV6: T | DX6: T | DY6: T | DZ6: TT | EA6: TT | EB6: TT | EC6: TT | ED6: T | EE6: T | EF6: T | EG6: T | EH6: T | EI6: TT | EK6: T | EN6: T | EO6: T | EP6: T | EQ6: T | ER6: T | ES6: C | ET6: C | EU6: C | EV6: C | EW6: C | EX6: C | EY6: C | EZ6: C | FA6: C | FB6: C | FC6: C | FD6: C | FE6: C | FF6: C | FG6: C | FH6: C | FI6: R | FJ6: R | FK6: R | FL6: R | FM6: R | FN6: R | FO6: R | FP6: R | FQ6: T | FR6: T | FS6: T | FT6: T | FW6: T | FX6: T | FY6: T | FZ6: T | GA6: T | GD6: T | GE6: T
S7: Simu | Y7: Simu | AF7: Simu | CP7: UTC | CQ7: LBG Closure | EB7: Réu? | GF7: Congés Fermeture été DA
B8: F900 EASy | M8: D | N8: D | U8: P | AM8: P | AP8: T | AQ8: P | AT8: P | AY8: P | AZ8: P | BA8: P | BB8: P | BT8: S | BU8: S | BV8: S | BW8: S | BX8: S | BY8: S | BZ8: S | CA8: S | CB8: S | CC8: S | CD8: S | CE8: S | CF8: S | CG8: S | CH8: S | CI8: S | CJ8: S | CK8: S | CL8: S | CM8: S | CN8: S | CO8: S | CP8: S | CQ8: S | DY8: P | DZ8: P | EA8: S | EB8: S | EG8: S | EH8: S | EM8: Y | EN8: Ebace | EQ8: Y | FC8: D | GD8: P | GE8: P | GF8: lundi 27 juillet 2015 au lundi
B9: s/n 281 | GF9: 17 août 2015 inclus
B10: =SUM(H10:FP10) -> 102.3 | U10: 8.7 | AM10: 4.1 | AP10: 1.8 | AQ10: 2 | AT10: 2.5 | AY10: 6.6 | AZ10: 7.2 | BA10: 4 | BB10: 4.5 | CB10: 9 | CF10: 9 | CN10: 0.5 | CP10: 8.8 | CQ10: 0.8 | DY10: 7.8 | DZ10: 6.8 | EA10: 4.7 | EB10: 4.6 | EG10: 0.9 | EH10: 4 | EM10: 1 | EQ10: 1 | FC10: 2 | GD10: 6.5 | GE10: 7.1
B11: F2TH EASy | L11: D | M11: D | N11: D | X11: D | Y11: D | AA11: D | AI11: P | AO11: T | AP11: Maintenance F-HLXS | AZ11: Y | BA11: Y | BB11: Aéro India | BH11: P | BK11: D | BL11: D | CG11: D | CH11: D | CJ11: D | CL11: D | DM11: D | DN11: D | DO11: D | DT11: D | DU11: D | EK11: T | EM11: Y | EN11: Ebace | EQ11: Y | FX11: M
B12: s/n 269 | BG12: P
B13: =SUM(G13:FP13) -> 83.3 | L13: 0.8 | M13: 5.3 | N13: 2.9 | X13: 1.1 | Y13: 4.1 | AA13: 5.4 | AI13: 2 | AO13: 2.4 | AZ13: 9.5 | BC13: 0.9 | BD13: 1.2 | BG13: 4.5 | BH13: 8 | BK13: 1.2 | BL13: 1.9 | CG13: 2.2 | CH13: 2.5 | CJ13: 2.7 | CL13: 2.2 | DM13: 1.6 | DN13: 2 | DO13: 2.8 | DT13: 9.7 | DU13: 3.2 | EK13: 1.2 | EM13: 1 | EQ13: 1 | FX13: 1.5
B14: OCCAS | O14: M | R14: M | Y14: M | AI14: Y | AM14: D | AN14: M | AO14: Y | AQ14: D | AR14: D | AS14: D | AT14: D | AU14: D | AV14: D | AW14: D | BA14: T | BB14: D | BC14: D | BD14: D | BI14: M | BK14: M | BL14: M | BO14: Y | BQ14: P | BR14: M | BV14: DGI | BX14: P | BY14: P | CK14: T | CL14: P | CR14: F | CS14: F | CT14: F | CV14: D | CW14: D | CX14: D | CY14: D | CZ14: D | DA14: D | DB14: D | DC14: D | DD14: D | DE14: D | DF14: ABACE | DJ14: D | DK14: D | DL14: D | DM14: D | DN14: D | DO14: D | DP14: D | DQ14: D | DR14: D | DS14: D | DT14: D | DU14: D | DV14: D | DX14: D? | DY14: D? | DZ14: Y | EA14: T | EC14: T | EG14: T | EH14: Y | EI14: T | EK14: Y | EN14: Y | EO14: P | EP14: T | ER14: T | EV14: Y | EW14: T | EX14: Y | FD14: Y | FF14: Y | FG14: Practical Training Bordeaux | FW14: Y | FX14: M | FY14: T | GE14: M
AW15: Y | BD15: M | CK15: T | DA15: Y | DI15: M | DL15: M | DT15: D | DZ15: S | EC15: D | EG15: T | EI15: M? | EO15: D | EP15: D | FL15: D | FM15: D | FN15: D | FO15: D | FS15: DGI | FW15: M
B16: =SUM(G16:FP16) -> 195.9 | O16: 0.9 | R16: 2 | AI16: 1.2 | AM16: 1.5 | AN16: 3.1 | AO16: 1.8 | AQ16: 6.5 | AR16: 10.7 | AS16: 0.5 | AV16: 7.5 | AW16: 5.5 | BA16: 2 | BB16: 1.3 | BC16: 4.5 | BD16: 1.7 | BI16: 1.4 | BK16: 1.3 | BL16: 1.5 | BO16: 0.9 | BQ16: 2.3 | BR16: 1.6 | BV16: 2 | BX16: 1.5 | BY16: 1.5 | CK16: 1.5 | CL16: 2.5 | CR16: 2.3 | CT16: 2.2 | CV16: 8.8 | CY16: 6 | CZ16: 4 | DA16: 0.9 | DB16: 4 | DC16: 2 | DD16: 2 | DI16: 1.4 | DK16: 6 | DL16: 9.5 | DO16: 8 | DP16: 1.3 | DT16: 8.9 | DU16: 11.7 | DV16: 3.5 | DZ16: 0.8 | EH16: 1 | EI16: 5.1 | EO16: 6.3 | EP16: 7.3 | ER16: 2 | EV16: 8.4 | EW16: 1.6 | EX16: 0.9 | FD16: 3.2 | FF16: 1 | FL16: 2 | FM16: 2.5 | FO16: 2.6 | FS16: 2.6 | FW16: 1 | FX16: 2 | FY16: 3.7 | GE16: 1.5
B17: FA7X | T17: Y/X | V17: X | W17: D | AP17: D | AU17: P | AZ17: Y | BA17: Y | BB17: Aéro India | BL17: T | BQ17: D | BR17: D | BW17: M | CC17: P | CD17: P | CE17: P | CR17: F | CS17: F | CT17: F | CU17: T | DL17: X | DO17: D | DP17: D | DT17: D | EA17: D | EB17: D | EF17: D | EG17: D | EH17: D | EI17: D | EM17: Y | EN17: Ebace | EQ17: Y | ET17: D | EU17: D | EV17: D | EY17: M | EZ17: D | FC17: D | FX17: D | FY17: DGI | GA17: D | GB17: D | GC17: D | GD17: D | GE17: D
B18: s/n 207 | BH18: Y | FY18: D
B19: =SUM(G19:FP19) -> 121.4 | T19: 2 | W19: 4.2 | AP19: 3.7 | AU19: 3.1 | AZ19: 8.7 | BD19: 1.3 | BE19: 1.3 | BG19: 1 | BH19: 10.7 | BL19: 2 | BQ19: 8.2 | BR19: 6.1 | CC19: 12.4 | CE19: 13.5 | CR19: 2.5 | CT19: 2.3 | CU19: 4.6 | DT19: 4.9 | EF19: 6 | EH19: 3.8 | EI19: 9.6 | ET19: 2.8 | EV19: 1.1 | EY19: 1.2 | EZ19: 2.4 | FC19: 2 | FX19: 2.7 | FY19: 3.9 | GA19: 1.3 | GB19: 9.6
B20: Autres activités | G20: T | H20: T | I20: T | J20: T | K20: T | L20: T | M20: T | N20: T | O20: T | P20: T | Q20: T | R20: T | S20: T | T20: T | U20: T | V20: T | AQ20: Al Bateen | EA20: ATO TRE | EQ20: ATOStage TRI 7X | FE20: ATO TRI F900 Ex Easy | FP20: Salon du Bourget
G21: T | H21: T | I21: T | J21: T | K21: T | L21: T | R21: Mep | S21: T | T21: T | U21: T | V21: T | W21: T | X21: T | Y21: Mep | Z21: Mep
B22: =SUM(G22:FP22) -> 0
B24: Missions en attente | DF24: T?
B28: 20 | D28: Réu | E28: ATO
B29: 7x | C29: 9z | D29: 2z | E29: 5x
B30: 50 | C30: 9c | D30: 2c | E30: 8x | G30: 1 | H30: 2 | I30: 3 | J30: 4 | K30: 5 | L30: 6 | M30: 7 | N30: 8 | O30: 9 | P30: 10 | Q30: 11 | R30: 12 | S30: 13 | T30: 14 | U30: 15 | V30: 16 | W30: 17 | X30: 18 | Y30: 19 | Z30: 20 | AA30: 21 | AB30: 22 | AC30: 23 | AD30: 24 | AE30: 25 | AF30: 26 | AG30: 27 | AH30: 28 | AI30: 29 | AJ30: 30 | AK30: 31 | AL30: 1 | AM30: 2 | AN30: 3 | AO30: 4 | AP30: 5 | AQ30: 6 | AR30: 7 | AS30: 8 | AT30: 9 | AU30: 10 | AV30: 11 | AW30: 12 | AX30: 13 | AY30: 14 | AZ30: 15 | BA30: 16 | BB30: 17 | BC30: 18 | BD30: 19 | BE30: 20 | BF30: 21 | BG30: 22 | BH30: 23 | BI30: 24 | BJ30: 25 | BK30: 26 | BL30: 27 | BM30: 28 | BN30: 1 | BO30: 2 | BP30: 3 | BQ30: 4 | BR30: 5 | BS30: 6 | BT30: 7 | BU30: 8 | BV30: 9 | BW30: 10 | BX30: 11 | BY30: 12 | BZ30: 13 | CA30: 14 | CB30: 15 | CC30: 16 | CD30: 17 | CE30: 18 | CF30: 19 | CG30: 20 | CH30: 21 | CI30: 22 | CJ30: 23 | CK30: 24 | CL30: 25 | CM30: 26 | CN30: 27 | CO30: 28 | CP30: 29 | CQ30: 30 | CR30: 31 | CS30: 1 | CT30: 2 | CU30: 3 | CV30: 4 | CW30: 5 | CX30: 6 | CY30: 7 | CZ30: 8 | DA30: 9 | DB30: 10 | DC30: 11 | DD30: 12 | DE30: 13 | DF30: 14 | DG30: 15 | DH30: 16 | DI30: 17 | DJ30: 18 | DK30: 19 | DL30: 20 | DM30: 21 | DN30: 22 | DO30: 23 | DP30: 24 | DQ30: 25 | DR30: 26 | DS30: 27 | DT30: 28 | DU30: 29 | DV30: 30 | DW30: 1 | DX30: 2 | DY30: 3 | DZ30: 4 | EA30: 5 | EB30: 6 | EC30: 7 | ED30: 8 | EE30: 9 | EF30: 10 | EG30: 11 | EH30: 12 | EI30: 13 | EJ30: 14 | EK30: 15 | EL30: 16 | EM30: 17 | EN30: 18 | EO30: 19 | EP30: 20 | EQ30: 21 | ER30: 22 | ES30: 23 | ET30: 24 | EU30: 25 | EV30: 26 | EW30: 27 | EX30: 28 | EY30: 29 | EZ30: 30 | FA30: 31 | FB30: 1 | FC30: 2 | FD30: 3 | FE30: 4 | FF30: 5 | FG30: 6 | FH30: 7 | FI30: 8 | FJ30: 9 | FK30: 10 | FL30: 11 | FM30: 12 | FN30: 13 | FO30: 14 | FP30: 15 | FQ30: 16 | FR30: 17 | FS30: 18 | FT30: 19 | FU30: 20 | FV30: 21 | FW30: 22 | FX30: 23 | FY30: 24 | FZ30: 25 | GA30: 26 | GB30: 27 | GC30: 28 | GD30: 29 | GE30: 30
B31: PMI | K31: Simu | L31: Simu | M31: EI | N31: EI | R31: Simu | S31: EI | T31: Réu | U31: SC | V31: Réu | Z31: T | AA31: DFS | AF31: Simu | AG31: Mep | AH31: Simu | AJ31: T | AU31: FCL | AW31: Réu | AX31: Réu | AY31: P | AZ31: P | BA31: T | BC31: SC | BD31: M | BH31: Dgac | BI31: M | BK31: D | BL31: D | BO31: Bur | BP31: T | BQ31: SC | BR31: M | BV31: DGI | BW31: M | BX31: ATO | CJ31: SC | CK31: T | CL31: D | CM31: Réu | CN31: Réu | CQ31: Réu | CR31: F | CS31: F | CT31: F | CU31: T | CV31: Simu | CW31: Mal | CX31: Mal | CY31: Mal | CZ31: Mal | DA31: Mal | DE31: Réu | DF31: SC | DG31: M&O Paris | DL31: Mep | DM31: T | DN31: Simu | DP31: Simu | DQ31: Simu | DR31: T | DS31: SC | DT31: D | DU31: D | DV31: M | DZ31: Mep | EA31: ATO | EB31: ATO | EC31: Simu | EG31: S | EH31: S | EI31: Mep | EJ31: SC | EK31: SC | EL31: Simu | EM31: Y | EN31: Ebace | EQ31: Y | ER31: T | FE31: SC | FI31: ATO | FJ31: SC | FL31: SC | FM31: SC | FN31: T | FO31: S | FP31: S | FQ31: Sc | FR31: Mep | FS31: Y | FW31: Simu | GD31: Réu | GE31: Réu | GF31: Congés du 05.08 au 10,09
B32: E | C32: E | D32: E | L32: EI | M32: DFS | U32: PO | Y32: Mal | Z32: Mal | AA32: Mal | AB32: Mal | AC32: Mal | AD32: Mal | AE32: Mal | AG32: Simu | AH32: Mep | BO32: Réu | CL32: Réu | DH32: For | DL32: T | DT32: D | DZ32: Y | EB32: Réu | EC32: Réu | EI32: M | EK32: Y | EM32: Mep | EN32: Y | EO32: D | EP32: D | ER32: SC | FI32: Réu | FQ32: S | FR32: Y | FS32: Mep | FW32: M | GD32: Sc
B33: E | C33: E | D33: E | DL33: Mep | DZ33: Simu | EI33: Mep | EK33: Simu | EO33: Mep | ER33: _ | GD33: ATO
B34: =SUM(G34:GE34) -> 143.8 | K34: 4 | L34: 4 | R34: 4 | AF34: 4 | AH34: 7 | AJ34: 7 | AY34: 6.6 | AZ34: 7.2 | BA34: 2 | BD34: 1.7 | BI34: 1.4 | BK34: 1.2 | BL34: 1.9 | BP34: 7 | BR34: 1.6 | BV34: 2 | CL34: 2.2 | CR34: 2.5 | CT34: 2.2 | CU34: 5.5 | CV34: 4 | DL34: 2.3 | DM34: 2 | DN34: 4 | DP34: 2 | DQ34: 4 | DR34: 0 | DT34: 3.9 | DU34: 3.2 | DV34: 2 | DZ34: 4.8 | EC34: 3 | EG34: 0.9 | EH34: 4 | EI34: 1.1 | EK34: 4 | EL34: 4 | EM34: 1 | EN34: 2 | EQ34: 1 | ER34: 1.4 | FO34: 3 | FR34: 3.7 | FS34: 2.5 | FW34: 5
B35: PGU | G35: Mal | H35: Mal | I35: Mal | J35: Mal | K35: Mal | L35: Mal | M35: Mal | N35: Mal | O35: Mal | P35: Mal | Q35: Mal | R35: Mal | S35: Mal | T35: Mal | U35: Mal | V35: Mal | W35: Mal | X35: Mal | Y35: Mal | Z35: Mal | AA35: Mal | AB35: Mal | AC35: Mal | AD35: Mal | AE35: Mal | AF35: Mal | AG35: Mal | AH35: Mal | AI35: Mal | AJ35: Mal | AK35: Mal | AL35: Mal | AM35: Mal | AN35: Mal | AO35: Mal | AP35: Mal | AQ35: Mal | AR35: Mal | AS35: Mal | AT35: Mal | AU35: Mal | AV35: Mal | AW35: Mal | AX35: Mal | AY35: Mal | AZ35: Mal | BA35: Mal | BB35: Mal | BC35: Mal | BD35: Mal | BE35: Mal | BF35: Mal | BG35: Mal | BH35: Mal | BI35: Mal | BJ35: Mal | BK35: Med | BL35: Med | BO35: SC | BP35: SC | BQ35: SC | BR35: SC | BS35: Simu | BV35: Réu | BW35: Réu | CC35: Réu | CE35: M | CG35: Réu | CJ35: Réu | CL35: Simu | CM35: Mep | CR35: Réu | CS35: Simu | CU35: Simu | DE35: Simu | DG35: M&O | DH35: M&O | DI35: M | DL35: X | DM35: For | DN35: For | DO35: For | DP35: For | DX35: D? | DY35: D? | EB35: Réu | EC35: Réu | EG35: Simu | EI35: T | EJ35: S | EM35: S | EN35: Med | EO35: Med | EP35: T | EQ35: ATO | ER35: ATO | ET35: ATO | EU35: ATO | EV35: ATO | EW35: ATO | EX35: ATO | EY35: M | EZ35: ATO | FC35: T | FE35: S | FL35: ATO | FM35: Réu | FP35: Simu | FQ35: S | FS35: S | FU35: S | FV35: S? | FW35: Simu | FX35: D | GF35: Relecture et la Validation documentaire 21.09 au 25.09 inclus pour le F 50
B36: E | C36: E | D36: E | BS36: SC | CJ36: Réu | CL36: Réu | CM36: Réu | DN36: X | DT36: D | EA36: D | EB36: D | GF36: Congés d’été du 31/07/2015 au24/08/2015 inclus
B37: E | C37: E | D37: E | CM37: Mep
B38: =SUM(G38:GE38) -> 89.7 | D38: C | BS38: 2 | CE38: 1.1 | CL38: 3 | CU38: 4 | DE38: 2 | DI38: 1.4 | DT38: 4.9 | EA38: 3.9 | EB38: 4.2 | EG38: 4 | EI38: 4 | EJ38: 5 | EM38: 3 | EO38: 4 | EP38: 3 | ET38: 4 | EU38: 4 | EV38: 4 | EW38: 4 | EX38: 4 | EY38: 1 | EZ38: 4 | FC38: 1.5 | FE38: 2 | FP38: 4 | FW38: 5 | FX38: 2.7
B39: DBR | L39: ATO | M39: EI | N39: Simu | O39: Réu | R39: Simu | S39: EI | T39: Y/X | U39: M | V39: Réu | Y39: Réu | Z39: Réu | AG39: Mep | AH39: Simu | AI39: Réu | AJ39: Réu | AM39: P | AO39: Réu | AP39: T | AT39: M? | AU39: Réu | AW39: Mep | AX39: Mep | AZ39: Simu | BA39: P | BB39: P | BC39: SC | BV39: Réu | BX39: ATO | BY39: Mep | BZ39: Mep | CA39: S | CB39: S | CC39: S | CD39: S | CE39: S | CF39: S | CG39: Mep | CJ39: SC | CK39: T | CL39: Réu | CQ39: Mep | CR39: F | CS39: F | CT39: F | CU39: T | CV39: Simu | CY39: Simu | CZ39: - | DA39: Y | DB39: S | DF39: SC | DG39: FCL | DH39: M&O | DI39: M | EA39: ATO | EB39: ATO | EC39: D | ED39: S | EG39: T | EH39: Y | EI39: T | EM39: Y | EN39: Ebace | EQ39: Y | ER39: T | EV39: S | EW39: T | EX39: Mep | EY39: M | EZ39: ATO | FB39: SC | FC39: D | FE39: ATO | FF39: ATO | FI39: ATO | FJ39: ATO | FK39: ATO | FL39: ATO | FM39: ATO | FP39: S | FQ39: S | FR39: S | FS39: DGI | FT39: Réu | FU39: S | FX39: M | FY39: Mep | FZ39: Réu | GA39: M | GB39: Mep | GD39: Sc | GE39: T
B40: E | C40: E | D40: E | L40: Simu | V40: BSF | Y40: M | Z40: Réu | AG40: Simu | AH40: Mep | AM40: Simu | AO40: T | AP40: ATO | AU40: Réu | AW40: Y | BV40: Simu | CF40: Mep | CQ40: S | CU40: Simu | DA40: Mep | DF40: Réu | EA40: S | EB40: Réu | EC40: S | EG40: Simu | EH40: Mep | EI40: Réu | EM40: Mep | EN40: Y | EP40: T | ER40: Simu | EX40: Y | FM40: SC | FX40: M | GA40: Réu | GD40: ATO | GF40: 14 au 21 Septembre Recurrent 7X FAA
B41: E | C41: E | AO41: ATO | AW41: Mep | EH41: Simu | GA41: Mep | GF41: Congés du 05.07 au 05.08
B42: =SUM(G42:GE42) -> 179.3 | L42: 4 | N42: 2 | R42: 2 | T42: 2.5 | U42: 2.1 | AH42: 7 | AM42: 8.1 | AO42: 2.4 | AP42: 1.8 | AW42: 10.5 | AZ42: 4 | BA42: 4 | BB42: 4.5 | BV42: 4 | CB42: 9 | CF42: 9 | CQ42: 0.8 | CR42: 2.3 | CT42: 2.2 | CU42: 8.6 | CV42: 4 | CY42: 4 | DA42: 0.9 | DI42: 1.4 | EA42: 4.7 | EC42: 3 | ED42: 3 | EG42: 5 | EH42: 5 | EI42: 4 | EM42: 1 | EN42: 2 | EO42: 4 | EP42: 2 | EQ42: 1 | ER42: 3.4 | EV42: 2.7 | EW42: 1.6 | EX42: 0.9 | EY42: 1.2 | EZ42: 4 | FC42: 2 | FJ42: 6 | FK42: 4 | FL42: 3 | FQ42: 3 | FS42: 2.6 | FX42: 3.5 | FY42: 2 | GA42: 1.5 | GE42: 2.1
B43: OFR | K43: Réu | L43: Réu | M43: D | N43: D | O43: MEP | P43: T | Q43: T | R43: T | T43: Réu | V43: BSF | Y43: Réu | Z43: Réu | AB43: simu | AC43: Réu | AF43: Réu | AG43: Sales Meeting Bod | AM43: Simu | AN43: Réu | AO43: Réu | AQ43: D | AR43: D | AS43: D | AT43: D | AU43: D | AV43: D | AW43: D | AX43: Mep | BA43: Réu | BB43: Mep | BC43: D | BD43: D | BO43: Mep | BP43: Réu | BQ43: P | BR43: S | BS43: Mep | BT43: S | BU43: S | BV43: S | BW43: S | BX43: S | BY43: Mep | CC43: Mep | CD43: Mep | CE43: Réu | CF43: Med | CK43: Réu | CL43: Réu | CM43: Mep | CN43: S | CO43: S | CP43: S | CQ43: Réu | CR43: Réu | CS43: Y | CT43: Mep | CX43: Simu | CY43: Mep | CZ43: Réu | DA43: Réu | DB43: Mep | DD43: Mep | DF43: Réu | DG43: FCL | DH43: M&O | DL43: Mep | DN43: - | DT43: Réu? | DZ43: Réu | EA43: Réu? | EB43: S | EC43: Réu? | EF43: D | EG43: D | EH43: D | EI43: D | EN43: ATO | EO43: ATO | EP43: Mep | EQ43: ATO | ER43: ATO | ET43: ATO | EU43: ATO | EV43: ATO | EW43: ATO | EX43: ATO | EY43: ATO | FA43: S | FB43: Simu | FC43: D | FD43: Mep | FH43: S | FI43: S | FJ43: S | FK43: S | FL43: S | FM43: S | FN43: S | FR43: S | FS43: S | FT43: Réu | FW43: M | FX43: Réu | FY43: T | GD43: MEP | GE43: ATO | GF43: Congés OFR à venir 18 juillet 2 aout et 8 aout au 23 aout
B44: E | C44: C | D44: I | L44: EI | R44: MEP | Y44: Med | AW44: Mep | BO44: Y | BR44: Mep | BX44: Mep | CC44: T | CP44: Mep | CR44: Mep | CS44: Mep | DD44: S | DL44: M | DT44: D | DZ44: S | EA44: Simu | EB44: Réu | EP44: T | FD44: Y | GF44: 24 au 31 Aout Recurrent FAA F2000EAsy
DL45: Mep | EB45: Simu | EP45: Mep
B46: =SUM(G46:GE46) -> 244.5 | M46: 5.3 | N46: 2.9 | P46: 6.5 | Q46: 10.8 | AM46: 4 | AQ46: 6.5 | AR46: 10.7 | AS46: 0.5 | AV46: 7.5 | AW46: 4.5 | BD46: 9.1 | BO46: 0.9 | BQ46: 2.3 | BX46: 30 | CC46: 2 | CN46: 0.5 | CP46: 8.8 | CS46: 10 | DD46: 2.3 | DL46: 1.7 | DT46: 4.9 | DZ46: 2 | EA46: 4 | EF46: 6 | EH46: 3.8 | EI46: 9.6 | EP46: 2 | ET46: 4 | EU46: 4 | EV46: 4 | EW46: 4 | EY46: 4 | FA46: 4 | FB46: 3 | FC46: 2 | FD46: 3.2 | FH46: 14.3 | FJ46: 5.5 | FK46: 2.3 | FL46: 3.7 | FM46: 8.2 | FN46: 9.5 | FW46: 2 | FY46: 3.7 | GE46: 4
B47: JPL | I47: T | J47: Mep | L47: D | N47: For | O47: Mep | R47: PO | S47: For | T47: Réu | U47: Mep | V47: Réu | W47: D | X47: D | Y47: D | Z47: For | AA47: Réu | AB47: For | AC47: Réu | AF47: Mep | AG47: S | AI47: Y | AJ47: Simu | AM47: Simu | AO47: Réu | AP47: T | AT47: P | AW47: Réu | AX47: Réu | AZ47: Y | BA47: Y | BB47: Aéro India | BH47: P | BK47: M | BL47: T | BO47: Réu | BP47: Réu | BQ47: P | BV47: Réu | BW47: For | BX47: Réu | BY47: For | BZ47: S | CA47: Mep | CC47: P | CD47: P | CE47: P | CF47: Réu | CG47: For | CJ47: Simu | CK47: T | CL47: Simu | CM47: Réu | CZ47: S | DA47: S | DB47: S | DE47: Mal | DF47: Mal | DG47: Mal | DH47: Mal | DI47: Mal | DJ47: Mal | DL47: For | DM47: For | DN47: For | DO47: For | DP47: For | DR47: T | DT47: D | DU47: D | DV47: Mep | DW47: S | DX47: Mep | DZ47: Mep | EA47: Mep | EB47: ATO | EF47: Mep | EG47: Mep | EH47: - | EI47: S | FB47: Mep | FC47: Mep | FE47: Réu | FF47: S | FJ47: Mep | FK47: Y | FL47: Mep | FP47: Mal | FQ47: Mal | FR47: Mal | FS47: Mal | FT47: Mal | FU47: Mal | FV47: Mal | FW47: Mal | FX47: Réu | FY47: DGI | FZ47: Réu | GA47: Réu | GC47: Mep | GD47: Réu | GE47: Réu | GF47: Du 25 juillet inclus au 16 Août inclus
B48: E | C48: E | D48: E | I48: T | M48: D | N48: D | O48: M | S48: PO | U48: Réu | V48: Simu | Z48: Réu | AB48: Réu | AF48: S | AG48: Mep | AP48: ATO | BD48: D | BE48: D | BG48: P | BL48: M | BO48: Mep | BP48: Réu | BW48: Réu | BY48: Réu | BZ48: Mep | CG48: Réu | CL48: Réu | CQ48: Mep | DT48: D | DZ48: S | EA48: Réu | EB48: Réu | EF48: S | EH48: Simu | FB48: S | FK48: Mep | GE48: Mep
U49: Mep | AB49: Réu | AG49: For | BO49: Y | CQ49: Réu | EA49: Simu
B50: =SUM(G50:GE50) -> 185.8 | I50: 6.9 | L50: 0.8 | O50: 0.9 | V50: 4 | W50: 4.4 | X50: 1.1 | Y50: 4.1 | AF50: 4.2 | AG50: 3.3 | AI50: 1.2 | AJ50: 2 | AM50: 4 | AP50: 1.8 | AT50: 2.5 | AZ50: 9.5 | BD50: 2.4 | BE50: 1.3 | BG50: 4.5 | BH50: 8 | BK50: 1.3 | BL50: 3.5 | BO50: 0.9 | BZ50: 8.1 | CC50: 12.4 | CE50: 13.5 | CJ50: 4 | CK50: 1.5 | CL50: 3 | CQ50: Mep | CZ50: 10.5 | DA50: 2.3 | DB50: 1.3 | DR50: 2.7 | DT50: 3.9 | DU50: 3.7 | DW50: 2.6 | DZ50: 3.3 | EA50: 4 | EF50: 7.9 | EH50: 4 | EI50: 3.7 | FB50: 3 | FF50: 4.3 | FK50: 10.5 | FY50: 2 | GD50: 1
B51: OPE | L51: ATO | N51: EI | O51: Mep | R51: Réu | S51: Réu | T51: Réu | U51: P | Y51: M | Z51: T | AA51: Réu | AC51: Réu | AF51: Simu | AG51: Mal | AH51: Mal | AI51: Mal | AJ51: Mal | AN51: M | AO51: Réu | AP51: D | AQ51: P | AZ51: Mep | BA51: Mep | BB51: D | BC51: D | BD51: Mep | BE51: Mep | BH51: Med | BJ51: Réu | BK51: Réu | BL51: T | BV51: Simu | BX51: P | BY51: P | CE51: Réu | CF51: Réu | CG51: D | CH51: D | CJ51: S | CK51: S | CL51: S | CM51: S | CN51: S | CO51: S | CP51: S | CQ51: S | CR51: Réu | CS51: Med | CT51: S | CX51: Simu | DA51: S | DD51: S | DE51: S | DF51: S | DG51: S | DH51: S | DI51: S | DJ51: S | DK51: S | DL51: S | DM51: S | DN51: S | DO51: S | DP51: S | DV51: Simu | EC51: Réu | EG51: Réu | EH51: S | EI51: S | EK51: T | EM51: Y | EN51: Ebace | EQ51: Y | EU51: S | EV51: Y | EW51: Mep | EX51: Mep | EY51: ATO | EZ51: D | FB51: Mep | FC51: Réu | FD51: Réu | FE51: Réu | FF51: Réu | FG51: Mep | FJ51: Réu | FL51: D | FM51: D | FN51: Mep | FP51: Simu | FR51: Mep | FT51: S | FU51: S | FW51: Mep | FX51: Réu | FY51: T | GD51: P | GE51: P | GF51: 14 au 21 Septembre Reccurent 7X FAA
B52: E | C52: E | D52: E | L52: D | O52: M | R52: Mep | S52: Mep | Y52: Simu | AA52: Réu | AC52: Simu | AH52: Réu | AI52: Réu | AO52: Y | BH52: Visa | BL52: M | CF52: Réu | CR52: Réu | CS52: S | DA52: Mep | EC52: Réu | EG52: S | EV52: Mep | EX52: Y | FF52: Mep | FR52: Y | FW52: Y | FX52: Réu?
D53: C | AO53: Mep | EX53: ATO
B54: =SUM(G54:GE54) -> 168.6 | L54: 0.8 | O54: 0.9 | U54: 8.7 | Z54: 2.7 | AN54: 3.1 | AO54: 1.8 | AP54: 3.7 | AQ54: 2 | BB54: 1.3 | BC54: 4.5 | BL54: 3.5 | BV54: 4 | BX54: 1.5 | BY54: 1.5 | CG54: 2.2 | CH54: 2.5 | CJ54: 5.5 | CK54: 3.3 | CM54: 1.8 | CP54: 7.2 | CQ54: 1.7 | CS54: 1.3 | CT54: 1 | CX54: 1.5 | DA54: 1.3 | DD54: 9.6 | DF54: 3.8 | DG54: 1.6 | DH54: 1.6 | DI54: 3.4 | DK54: 4.6 | DL54: 2.3 | DN54: 3.6 | DO54: 7.8 | DP54: 1.2 | DV54: 4 | EG54: 0.9 | EH54: 4 | EI54: 1.9 | EK54: 1.2 | EM54: 1 | EQ54: 1 | EV54: 8 | EX54: 0.9 | EY54: 4 | EZ54: 2.4 | FL54: 2 | FM54: 2.5 | FP54: 4 | FR54: 3.7 | FW54: 1 | FY54: 3.7 | GD54: 6.5 | GE54: 7.1
B55: MDU | R55: M | T55: PO | U55: M | V55: PO | Y55: Mep | Z55: T | AA55: Réu | AB55: Réu | AC55: Réu | AF55: Réu | AG55: Réu | AH55: Réu | AI55: P | AM55: D | AO55: Réu | AQ55: Réu | AW55: Y | AX55: Simu | AZ55: Y | BA55: Y | BB55: Aéro India | BJ55: Réu | BO55: Mep | BP55: Mep | BQ55: D | BR55: D | BS55: Simu | BW55: M | BY55: Réu | CC55: Simu | CE55: M | CF55: Y | CG55: Mep | CK55: T | CL55: Réu | CN55: Réu | CQ55: Réu | CR55: Réu | CS55: Simu | CU55: Med | CV55: Med | CW55: Med | CX55: Med | CY55: Med | CZ55: Med | DA55: Med | DB55: Med | DC55: Med | DD55: Med | DE55: Med | DF55: Med | DG55: M&O Paris | DI55: S | DL55: For | DM55: For | DN55: For | DO55: For | DP55: For | DZ55: M? | EA55: T | EB55: S | EC55: Réu | EO55: D | EP55: D | EQ55: Mep | ER55: S | ES55: S | ET55: S | EU55: Mep | EV55: Mep | EW55: T | EX55: Mep | EY55: S | FB55: Réu | FD55: Mep | FE55: ATO | FF55: ATO | FI55: ATO | FJ55: ATO | FK55: ATO | FL55: ATO | FM55: ATO | FP55: Simu | FQ55: Mep | FR55: S | FS55: S | FT55: S | FU55: S | FV55: S | FW55: Simu | GE55: M
B56: C | C56: E | D56: E | Z56: Mep | AB56: Réu | AF56: Mep | AG56: T | AM56: Simu | AO56: T | AW56: Mep | BC56: D | BH56: Y | BO56: T | BW56: Simu | CE56: Mep | CF56: Mep | CN56: Réu | CR56: Réu | DI56: Mep | DY56: S | EA56: T | EC56: Réu | EV56: D | EW56: S | EY56: Mep | FB56: Simu | FD56: Y | FQ56: T | GF56: Relecture et la Validation documentaire 21.09 au 25.09 inclus pour le F 50
B57: E | C57: E | D57: E | AG57: Mep | AO57: ATO | FQ57: Mep
B58: =SUM(G58:GE58) -> 150.1 | D58: E | R58: 1 | U58: 2.1 | AG58: 1 | AI58: 2 | AM58: 6.3 | AO58: 2.4 | AW58: 1 | AX58: 4 | AZ58: 8.7 | BC58: 0.9 | BD58: 1.3 | BE58: 1.3 | BG58: 1 | BH58: 10.7 | BQ58: 8.2 | BR58: 6.1 | BW58: 4 | CC58: 4 | CE58: 1.1 | CF58: 10.4 | CK58: 1.5 | DI58: 1.3 | DY58: 3.8 | EA58: 1.9 | EB58: 4.6 | EO58: 4.3 | EP58: 3.8 | ET58: 7 | EV58: 1.1 | EW58: 4.5 | EY58: 1.6 | FB58: 3 | FD58: 3.2 | FJ58: 6 | FK58: 4 | FL58: 3 | FP58: 4 | FR58: 4 | FU58: 4.5 | FW58: 4 | GE58: 1.5
B59: PCA | G59: T | H59: T | I59: Mep | L59: ATO | M59: Réu | N59: Simu | O59: Réu | R59: Réu | S59: T | T59: Réu | U59: Réu | X59: Mep | Y59: T | Z59: Réu | AA59: D | AG59: Mep | AH59: Simu | AI59: Y | AJ59: Réu | AM59: Réu | AO59: Réu | AP59: Réu | AQ59: T | AT59: M? | AU59: P | AV59: Réu | AW59: Y | BI59: M | BJ59: Réu | BK59: M | BO59: Réu | BP59: Mep | BQ59: Réu | BR59: M | BV59: Réu | BW59: Réu | BX59: ATO | BZ59: Mep | CA59: T | CB59: T | CC59: Mep | CD59: Mep | CE59: Réu | CF59: Réu | CG59: Med | CJ59: Réu | CK59: T | CL59: D | CM59: Réu | CR59: Med | CS59: Simu | CT59: SC | CU59: T | CV59: Mep | CY59: SC | DA59: Y | DD59: Mep | DE59: Mep | DF59: ABACE | DJ59: Mep | DS59: Mep | DT59: D | DU59: D | DV59: D | DW59: S | DZ59: Mep | EA59: ATO | EB59: ATO | EC59: Simu | ED59: S | EG59: T | EH59: Y | EI59: Mep | EN59: Simu | EO59: P | EP59: T | EQ59: SC | ER59: ATO | ET59: D | EV59: Y | EW59: Mep | EX59: Mep | EY59: T | FB59: S | FC59: S | FE59: Réu | FF59: Y | FI59: Mep | FJ59: Réu | FK59: Réu | FL59: Réu | FO59: Mep | FP59: S | FQ59: S | FR59: Med | FS59: Med | FT59: S | FV59: S | FW59: Réu | FX59: M | FY59: D | GA59: D | GB59: D | GC59: Mep | GD59: Réu | GE59: M | GF59: 31 Juillet au 23 Aout Congés
B60: E | C60: C | D60: E | H60: Mep | L60: Simu | R60: Brief | Y60: Mep | AG60: Simu | AH60: Mep | AM60: Réu | AO60: Med | AW60: Mep | BI60: Réu | BO60: Réu | BP60: Réu | BQ60: Mep | CJ60: D | CL60: Réu | CM60: Réu | CS60: Réu | CV60: T | DA60: Mep | DI60: Mep | DZ60: Y | EB60: Réu | EC60: T | EG60: Simu | EH60: Mep | EI60: M | EQ60: ATO | ER60: S | ET60: Mep | EV60: Mep | EW60: Réu | FF60: Mep | FI60: T | FO60: D | FX60: M | GA60: Réu | GB60: Mep | GD60: ATO | GF60: 24 au 31 Aout Recurrent FAA F2000EAsy
B61: E | C61: E | CS61: M | CV61: Mep | DA61: Réu | DZ61: Simu | EH61: Simu | EI61: Mep | FI61: Mep
B62: =SUM(G62:GE62) -> 167.1 | G62: 3.8 | H62: 3.8 | L62: 4 | N62: 2 | S62: 2.5 | Y62: 1.8 | AA62: 5.4 | AH62: 7 | AI62: 1.2 | AQ62: 2.5 | AU62: 3.1 | AW62: 1 | BI62: 1.4 | BK62: 1.3 | BR62: 1.6 | CA62: 4 | CB62: 4 | CJ62: 2.7 | CL62: 2.2 | CS62: 1.9 | CU62: 4.6 | CV62: 2.2 | DA62: 0.9 | DT62: 5 | DU62: 6.2 | DV62: 3.5 | DW62: 4 | DZ62: 4.8 | EC62: 4.9 | ED62: 5.3 | EG62: 5 | EH62: 5 | EI62: 1.1 | EN62: 4 | EO62: 2 | EP62: 3.5 | ER62: 3.6 | ET62: 2.8 | EV62: 8.4 | EY62: 3 | FB62: 5.7 | FC62: 2.1 | FF62: 1 | FI62: 0.9 | FO62: 2.6 | FX62: 3.5 | FY62: 1.9 | GA62: 1.3 | GB62: 9.6 | GE62: 1.5
B63: BSE | CO63: 77j | DW63: 80j | FA63: 105
B64: E
B65: E | C65: E | J65: 91j
B66: 0
B67: DEV | BV67: Simu | DN67: DEV | DO67: D | DP67: D | DX67: DEV | DY67: P | DZ67: P | EE67: JLD | EF67: D | EG67: D | EH67: D | EI67: D | EN67: EGE | EO67: D | EP67: D | EU67: Simu | EV67: Simu | FC67: D
DL68: DEV | DM68: D | DN68: D | DO68: D | EN68: FVA | EO68: D | EP68: D | EV68: Simu
EN69: JLD | EO69: P | EP69: EFA | EQ69: M
B70: =SUM(G70:FP70) -> 0
B71: EXT | CU71: CMA | CV71: D | CW71: D | CX71: D | CY71: D | CZ71: D | DA71: D | DB71: D | DC71: D | DD71: D | DE71: D | DJ71: CMA | DK71: D | DL71: D | DM71: D | DN71: D | DO71: D | DP71: D | DQ71: D | DR71: D | DS71: D | DT71: D | DU71: D | DV71: D | DZ71: HME | EA71: S | EB71: RMO | EC71: D | EJ71: RMO | EK71: Y
EA72: RBE | EB72: S
B74: =SUM(G74:FP74) -> 0
G75: 1 | H75: 2 | I75: 3 | J75: 4 | K75: 5 | L75: 6 | M75: 7 | N75: 8 | O75: 9 | P75: 10 | Q75: 11 | R75: 12 | S75: 13 | T75: 14 | U75: 15 | V75: 16 | W75: 17 | X75: 18 | Y75: 19 | Z75: 20 | AA75: 21 | AB75: 22 | AC75: 23 | AD75: 24 | AE75: 25 | AF75: 26 | AG75: 27 | AH75: 28 | AI75: 29 | AJ75: 30 | AK75: 31 | AL75: 1 | AM75: 2 | AN75: 3 | AO75: 4 | AP75: 5 | AQ75: 6 | AR75: 7 | AS75: 8 | AT75: 9 | AU75: 10 | AV75: 11 | AW75: 12 | AX75: 13 | AY75: 14 | AZ75: 15 | BA75: 16 | BB75: 17 | BC75: 18 | BD75: 19 | BE75: 20 | BF75: 21 | BG75: 22 | BH75: 23 | BI75: 24 | BJ75: 25 | BK75: 26 | BL75: 27 | BM75: 28 | BN75: 1 | BO75: 2 | BP75: 3 | BQ75: 4 | BR75: 5 | BS75: 6 | BT75: 7 | BU75: 8 | BV75: 9 | BW75: 10 | BX75: 11 | BY75: 12 | BZ75: 13 | CA75: 14 | CB75: 15 | CC75: 16 | CD75: 17 | CE75: 18 | CF75: 19 | CG75: 20 | CH75: 21 | CI75: 22 | CJ75: 23 | CK75: 24 | CL75: 25 | CM75: 26 | CN75: 27 | CO75: 28 | CP75: 29 | CQ75: 30 | CR75: 31 | CS75: 1 | CT75: 2 | CU75: 3 | CV75: 4 | CW75: 5 | CX75: 6 | CY75: 7 | CZ75: 8 | DA75: 9 | DB75: 10 | DC75: 11 | DD75: 12 | DE75: 13 | DF75: 14 | DG75: 15 | DH75: 16 | DI75: 17 | DJ75: 18 | DK75: 19 | DL75: 20 | DM75: 21 | DN75: 22 | DO75: 23 | DP75: 24 | DQ75: 25 | DR75: 26 | DS75: 27 | DT75: 28 | DU75: 29 | DV75: 30 | DW75: 1 | DX75: 2 | DY75: 3 | DZ75: 4 | EA75: 5 | EB75: 6 | EC75: 7 | ED75: 8 | EE75: 9 | EF75: 10 | EG75: 11 | EH75: 12 | EI75: 13 | EJ75: 14 | EK75: 15 | EL75: 16 | EM75: 17 | EN75: 18 | EO75: 19 | EP75: 20 | EQ75: 21 | ER75: 22 | ES75: 23 | ET75: 24 | EU75: 25 | EV75: 26 | EW75: 27 | EX75: 28 | EY75: 29 | EZ75: 30 | FA75: 31 | FB75: 1 | FC75: 2 | FD75: 3 | FE75: 4 | FF75: 5 | FG75: 6 | FH75: 7 | FI75: 8 | FJ75: 9 | FK75: 10 | FL75: 11 | FM75: 12 | FN75: 13 | FO75: 14 | FP75: 15 | FQ75: 16 | FR75: 17 | FS75: 18 | FT75: 19 | FU75: 20 | FV75: 21 | FW75: 22 | FX75: 23 | FY75: 24 | FZ75: 25 | GA75: 26 | GB75: 27 | GC75: 28 | GD75: 29 | GE75: 30
B76: CPA | T76: Visa | V76: X | X76: D | Y76: D | Z76: Réu | AA76: D | AM76: P | AO76: Med | AP76: D | AZ76: Y | BA76: Y | BB76: Aéro India | BH76: P | BK76: D | BL76: D | CC76: P | CD76: P | CE76: P | CL76: D | CM76: For | CR76: F | CS76: F | CT76: F | CV76: D | CW76: D | CX76: D | CY76: D | CZ76: D | DA76: D | DB76: D | DC76: D | DD76: D | DE76: D | DF76: Abace | DI76: Mep | DL76: X | DM76: D | DN76: D | DO76: D | EM76: Y | EN76: Ebace | EQ76: Y | FC76: D | FL76: D | FO76: Salon du Bourget | GF76: Juillet | GJ76: Aout | GM76: Septembre
B77: 7x | C77: 9z | D77: 2z | E77: 5x | F77: 8x | T77: Y/X | BG77: P | CM77: Réu | FY77: D | GF77: CPA / repos 11 au 18 / vac 19 au 31 | GJ77: CPA / repos 1 au 8 | GM77: CPA / repos 21 au 28
B78: 50 | C78: 9c | D78: 2c
B79: =SUM(G79:GE79) -> 120 | T79: 2 | X79: 1.1 | Y79: 4.1 | AA79: 5.4 | AM79: 4.1 | AP79: 3.7 | AZ79: 8.7 | BD79: 1.3 | BG79: 4.5 | BH79: 8 | BK79: 1.2 | BL79: 1.9 | CC79: 12.4 | CE79: 13.5 | CL79: 2.2 | CR79: 2.5 | CT79: 2.3 | CV79: 8.8 | CY79: 6 | CZ79: 4 | DB79: 4 | DC79: 2 | DD79: 2 | DM79: 1.6 | DN79: 2 | DO79: 2.8 | EM79: 1 | EQ79: 1 | FC79: 2 | FL79: 2 | FY79: 1.9
B80: CMO | M80: D | N80: D | T80: Visa | AI80: P | AM80: D | AQ80: P | AT80: P | AU80: P | AZ80: Y | BA80: Y | BB80: Aéro India | BQ80: D | BR80: D | BV80: DGI | BW80: Réu | CG80: D | CH80: D | CR80: F | CS80: F | CT80: F | DI80: For | DX80: D? | DY80: P | DZ80: P | EM80: Y | EN80: Ebace | EQ80: Y | ET80: D | FC80: D | FP80: Salon du Bourget | GD80: P | GE80: P | GF80: CMO / repos du 4 au 11 | GJ80: CMO / repos 7au 14 / vac 15 au 30 | GM80: CMO / repos 1 au 8
B81: 7x | C81: 9z | D81: 2z | E81: 5x | F81: 8x | T81: Réu | BH81: Y | ET81: Mep
B82: 50 | C82: 9c | D82: 2c
B83: =SUM(G83:GE83) -> 100 | M83: 5.3 | N83: 2.9 | AI83: 2 | AM83: 1.3 | AQ83: 2 | AT83: 2.5 | AU83: 3.1 | AZ83: 8.7 | BG83: 1 | BH83: 10.7 | BQ83: 8.2 | BR83: 6.1 | BV83: 2 | CG83: 2.2 | CH83: 2.5 | CR83: 2.3 | CT83: 2.2 | DY83: 7.8 | DZ83: 6.8 | EM83: 1 | EQ83: 1 | ET83: 2.8 | FC83: 2 | GD83: 6.5 | GE83: 7.1
B84: MFR | T84: Visa | U84: P | W84: D | AF84: Med | AQ84: D | AR84: D | AS84: D | AT84: D | AU84: D | AV84: D | AW84: D | AX84: Mep | AY84: P | AZ84: P | BX84: P | BY84: P | CJ84: D | CL84: P | CM84: For | DF84: Mep | DG84: Mep | DH84: Abace | DJ84: D | DK84: D | DL84: D | DM84: D | DN84: D | DO84: D | DP84: D | DQ84: D | DR84: D | EF84: D | EG84: D | EH84: D | EI84: D | EM84: Y | EN84: Ebace | EQ84: Y | EV84: Mep | EZ84: D | FM84: D | FP84: Salon du Bourget | FX84: D | GA84: D | GB84: D | GC84: Mep | GF84: MFR / repos 1au 3 / repos 21 au 25 | GJ84: MFR / repos 1au 8 / vac 9 au 24 | GM84: MFR / repos 1 au 8 / vac le 9
B85: 7x | C85: 9z | D85: 2z | E85: 5x | F85: 8x | T85: Réu | AW85: Mep | DR85: Mep | EV85: D | FM85: Mep | GB85: Mep
B86: 50 | C86: 9c | D86: 2c
B87: =SUM(G87:GE87) -> 128.6 | U87: 8.7 | W87: 4.2 | AQ87: 6.5 | AR87: 10.7 | AS87: 0.5 | AV87: 7.5 | AW87: 4.5 | AY87: 6.6 | AZ87: 7.2 | BX87: 1.5 | BY87: 1.5 | CJ87: 2.7 | CL87: 2.5 | DK87: 6 | DL87: 7.8 | DO87: 8 | DP87: 1.3 | EF87: 6 | EH87: 3.8 | EI87: 9.6 | EM87: 1 | EQ87: 1 | EV87: 1.1 | EZ87: 2.3 | FM87: 2.5 | FX87: 2.7 | GA87: 1.3 | GB87: 9.6
B88: EXT | L88: ATE | M88: D | N88: D | AY88: ATE | AZ88: Mep | BA88: Mep | BB88: D | BC88: D | BD88: Mep | BE88: Mep | BP88: NPA | BQ88: P | BS88: ALA | BT88: D | BU88: D | BV88: D | BW88: D | BX88: D | BY88: D | BZ88: D | CA88: D | CB88: D | DN88: NPA | DO88: D | DP88: D | DQ88: NPA | DR88: Mep | DS88: D | DT88: D | DU88: D | DV88: D | DX88: ALA | DY88: D? | DZ88: ALA | EA88: D | EB88: D | EF88: ALA | EG88: S | EH88: S | EN88: NPA | EO88: P | FG88: ALA | FH88: S | FI88: S | FJ88: S | FK88: S | FL88: S | FM88: S | FN88: S | FR88: ALA | FS88: DGI | FX88: ALA | FY88: DGI
BA89: CBR | BB89: Mep | BC89: D | BD89: D | DS89: RNG | DT89: D | DZ89: OMA | EA89: S | EB89: S | EN89: KGI | EO89: D | EP89: D | FN89: CBE | FO89: Mep | FW89: KGI | FX89: D
AZ90: LPI | BA90: P | BB90: P | DS90: ALA | DT90: D | DU90: D | DY90: NGE | DZ90: S | EN90: OMA | EO90: D | EP90: D | FO90: D
B91: =SUM(G91:FP91) -> 0 | DT91: D

Sheet 2015-2
G1: Juillet | AL1: Aout | BQ1: Septembre | CU1: Octobre | DZ1: Novembre | FD1: Décembre
G2: 1 | H2: 2 | I2: 3 | J2: 4 | K2: 5 | L2: 6 | M2: 7 | N2: 8 | O2: 9 | P2: 10 | Q2: 11 | R2: 12 | S2: 13 | T2: 14 | U2: 15 | V2: 16 | W2: 17 | X2: 18 | Y2: 19 | Z2: 20 | AA2: 21 | AB2: 22 | AC2: 23 | AD2: 24 | AE2: 25 | AF2: 26 | AG2: 27 | AH2: 28 | AI2: 29 | AJ2: 30 | AK2: 31 | AL2: 1 | AM2: 2 | AN2: 3 | AO2: 4 | AP2: 5 | AQ2: 6 | AR2: 7 | AS2: 8 | AT2: 9 | AU2: 10 | AV2: 11 | AW2: 12 | AX2: 13 | AY2: 14 | AZ2: 15 | BA2: 16 | BB2: 17 | BC2: 18 | BD2: 19 | BE2: 20 | BF2: 21 | BG2: 22 | BH2: 23 | BI2: 24 | BJ2: 25 | BK2: 26 | BL2: 27 | BM2: 28 | BN2: 29 | BO2: 30 | BP2: 31 | BQ2: 1 | BR2: 2 | BS2: 3 | BT2: 4 | BU2: 5 | BV2: 6 | BW2: 7 | BX2: 8 | BY2: 9 | BZ2: 10 | CA2: 11 | CB2: 12 | CC2: 13 | CD2: 14 | CE2: 15 | CF2: 16 | CG2: 17 | CH2: 18 | CI2: 19 | CJ2: 20 | CK2: 21 | CL2: 22 | CM2: 23 | CN2: 24 | CO2: 25 | CP2: 26 | CQ2: 27 | CR2: 28 | CS2: 29 | CT2: 30 | CU2: 1 | CV2: 2 | CW2: 3 | CX2: 4 | CY2: 5 | CZ2: 6 | DA2: 7 | DB2: 8 | DC2: 9 | DD2: 10 | DE2: 11 | DF2: 12 | DG2: 13 | DH2: 14 | DI2: 15 | DJ2: 16 | DK2: 17 | DL2: 18 | DM2: 19 | DN2: 20 | DO2: 21 | DP2: 22 | DQ2: 23 | DR2: 24 | DS2: 25 | DT2: 26 | DU2: 27 | DV2: 28 | DW2: 29 | DX2: 30 | DY2: 31 | DZ2: 1 | EA2: 2 | EB2: 3 | EC2: 4 | ED2: 5 | EE2: 6 | EF2: 7 | EG2: 8 | EH2: 9 | EI2: 10 | EJ2: 11 | EK2: 12 | EL2: 13 | EM2: 14 | EN2: 15 | EO2: 16 | EP2: 17 | EQ2: 18 | ER2: 19 | ES2: 20 | ET2: 21 | EU2: 22 | EV2: 23 | EW2: 24 | EX2: 25 | EY2: 26 | EZ2: 27 | FA2: 28 | FB2: 29 | FC2: 30 | FD2: 1 | FE2: 2 | FF2: 3 | FG2: 4 | FH2: 5 | FI2: 6 | FJ2: 7 | FK2: 8 | FL2: 9 | FM2: 10 | FN2: 11 | FO2: 12 | FP2: 13 | FQ2: 14 | FR2: 15 | FS2: 16 | FT2: 17 | FU2: 18 | FV2: 19 | FW2: 20 | FX2: 21 | FY2: 22 | FZ2: 23 | GA2: 24 | GB2: 25 | GC2: 26 | GD2: 27 | GE2: 28 | GF2: 29 | GG2: 30 | GH2: 31
G3: Me | H3: Je | I3: Ve | J3: Sa | K3: Di | L3: Lu | M3: Ma | N3: Me | O3: Je | P3: Ve | Q3: Sa | R3: Di | S3: Lu | T3: Ma | U3: Me | V3: Je | W3: Ve | X3: Sa | Y3: Di | Z3: Lu | AA3: Ma | AB3: Me | AC3: Je | AD3: Ve | AE3: Sa | AF3: Di | AG3: Lu | AH3: Ma | AI3: Me | AJ3: Je | AK3: Ve | AL3: Sa | AM3: Di | AN3: Lu | AO3: Ma | AP3: Me | AQ3: Je | AR3: Ve | AS3: Sa | AT3: Di | AU3: Lu | AV3: Ma | AW3: Me | AX3: Je | AY3: Ve | AZ3: Sa | BA3: Di | BB3: Lu | BC3: Ma | BD3: Me | BE3: Je | BF3: Ve | BG3: Sa | BH3: Di | BI3: Lu | BJ3: Ma | BK3: Me | BL3: Je | BM3: Ve | BN3: Sa | BO3: Di | BP3: Lu | BQ3: Ma | BR3: Me | BS3: Je | BT3: Ve | BU3: Sa | BV3: Di | BW3: Lu | BX3: Ma | BY3: Me | BZ3: Je | CA3: Ve | CB3: Sa | CC3: Di | CD3: Lu | CE3: Ma | CF3: Me | CG3: Je | CH3: Ve | CI3: Sa | CJ3: Di | CK3: Lu | CL3: Ma | CM3: Me | CN3: Je | CO3: Ve | CP3: Sa | CQ3: Di | CR3: Lu | CS3: Ma | CT3: Me | CU3: Je | CV3: Ve | CW3: Sa | CX3: Di | CY3: Lu | CZ3: Ma | DA3: Me | DB3: Je | DC3: Ve | DD3: Sa | DE3: Di | DF3: Lu | DG3: Ma | DH3: Me | DI3: Je | DJ3: Ve | DK3: Sa | DL3: Di | DM3: Lu | DN3: Ma | DO3: Me | DP3: Je | DQ3: Ve | DR3: Sa | DS3: Di | DT3: Lu | DU3: Ma | DV3: Me | DW3: Je | DX3: Ve | DY3: Sa | DZ3: Di | EA3: Lu | EB3: Ma | EC3: Me | ED3: Je | EE3: Ve | EF3: Sa | EG3: Di | EH3: Lu | EI3: Ma | EJ3: Me | EK3: Je | EL3: Ve | EM3: Sa | EN3: Di | EO3: Lu | EP3: Ma | EQ3: Me | ER3: Je | ES3: Ve | ET3: Sa | EU3: Di | EV3: Lu | EW3: Ma | EX3: Me | EY3: Je | EZ3: Ve | FA3: Sa | FB3: Di | FC3: Lu | FD3: Ma | FE3: Me | FF3: Je | FG3: Ve | FH3: Sa | FI3: Di | FJ3: Lu | FK3: Ma | FL3: Me | FM3: Je | FN3: Ve | FO3: Sa | FP3: Di | FQ3: Lu | FR3: Ma | FS3: Me | FT3: Je | FU3: Ve | FV3: Sa | FW3: Di | FX3: Lu | FY3: Ma | FZ3: Me | GA3: Je | GB3: Ve | GC3: Sa | GD3: Di | GE3: Lu | GF3: Lu | GG3: Ma | GH3: Me
B4: HGI | G4: Asie | H4: T | I4: T | L4: R | M4: T | N4: T | O4: T | P4: T | Q4: R | R4: R | S4: R | T4: R | U4: R | V4: R | W4: R | X4: R | Y4: R | Z4: R | AA4: R | AB4: R | AC4: R | AD4: R | AE4: R | AF4: R | AG4: T | AH4: T | AI4: T | AJ4: T | AK4: T | AL4: T | AN4: T | AO4: R | AP4: T | AQ4: T | AR4: T | AU4: C | AV4: C | AW4: C | AX4: C | AY4: C | AZ4: C | BA4: C | BB4: C | BC4: C | BD4: C | BE4: C | BF4: C | BI4: FTC | BJ4: FTC | BK4: FTC | BL4: FTC | BM4: FTC | BP4: FTC | BQ4: FTC | BR4: FTC | BS4: FTC | BT4: FTC | BW4: FTC | BX4: FTC | BY4: T | BZ4: T | CA4: T | CB4: T | CD4: T | CE4: T | CF4: T | CG4: T | CH4: T | CI4: T | CK4: T | CL4: T | CM4: T | CN4: T | CO4: T | CP4: T | CR4: T | CS4: T | CT4: T | CU4: T | CV4: T | CW4: T | CX4: T | CY4: T | CZ4: T | DA4: T | DB4: R | DC4: T | DD4: Asie | DE4: Asie | DF4: Asie | DG4: Asie | DH4: Asie | DI4: Asie | DJ4: Asie | DK4: Asie | DL4: Asie | DM4: Asie | DN4: Asie | DO4: Asie | DP4: Asie | DQ4: Asie | DR4: Asie | DT4: T | DU4: T | DV4: T | DW4: T | DX4: T | DY4: T | EA4: T | EB4: T | EC4: T | ED4: T | EE4: R | EF4: R | EG4: R | EH4: T | EI4: T | EJ4: T | EK4: T | EL4: T | EO4: T | EP4: T | EQ4: T | FO4: Asie | FP4: Asie | FQ4: Asie | FR4: Asie | FS4: Asie
B5: LN
B6: DNT | G6: T | H6: T | I6: T | J6: T | L6: T | M6: T | N6: T | O6: T | P6: T | Q6: T | S6: T | U6: T | V6: T | W6: T | Z6: T | AA6: T | AB6: T | AC6: T | AD6: T | AF6: T | AG6: T | AH6: T | AI6: T | AJ6: T | AK6: T | AL6: T | AM6: T | AN6: T | AO6: T | AP6: T | AQ6: T | AR6: T | AT6: T | AU6: T | AV6: T | AW6: T | AX6: T | AY6: T | BA6: T | BB6: T | BC6: T | BD6: T | BE6: T | BF6: T | BI6: T | BJ6: T | BK6: T | BL6: T | BM6: T | BP6: T | BQ6: T | BR6: T | BS6: T | BT6: T | BW6: T | BX6: T | BY6: T | BZ6: T | CA6: T | CB6: T | CC6: T | CD6: T | CE6: T | CF6: T | CG6: T | CH6: T | CI6: T | CK6: T | CL6: T | CM6: T | CN6: T | CO6: T | CR6: R | CS6: T | CT6: T | CU6: T | CV6: T | CY6: T | CZ6: T | DA6: T | DB6: T | DC6: T | DF6: T | DG6: T | DH6: T | DI6: T | DJ6: T | DM6: T | DN6: T | DO6: T | DP6: T | DQ6: T | DT6: T | DU6: T | DV6: T | DW6: T | DX6: T | EA6: T | EB6: T | EC6: T | ED6: T | EE6: T | EH6: R | EI6: R | EJ6: R | EK6: R | EL6: R | EM6: R | EN6: R | EO6: R | EP6: R | EQ6: R | ER6: R | ES6: R | ET6: R | EU6: R
G7: LBG Closure | M7: Réu | N7: LBG Closure | BW7: Simu | BX7: Simu | CE7: Simu | CR7: Simu | CS7: Simu | CW7: LBG | DD7: LBG | DJ7: Simu | DK7: Simu | FQ7: Simu | FR7: Simu
B8: 900 EASy | BE8: D | BF8: D | BG8: D | BO8: P | BP8: P | BQ8: P | BR8: P | DY8: Y? | ED8: Y | EE8: Dubaï | EL8: Y | EU8: D | EV8: D | EW8: D | EX8: D | EY8: D
B9: s/n 230 | BR9: Y | EW9: P | EX9: D
B10: =SUM(H10:FP10) -> 10 | BE10: 4.5 | BG10: 5.5
B11: F2TH EASy | L11: P | N11: D | O11: D | P11: D | Q11: D | Z11: D | AB11: D | AG11: S | AO11: D | BW11: M | BY11: D | BZ11: Jet Expo | CB11: D | CC11: D | CD11: D | CE11: D | CF11: D | CL11: D | CM11: D | CO11: D | CV11: P | CW11: P | CX11: P | CY11: P | DB11: D | DG11: F | DH11: F | DI11: F | DL11: P | DM11: P | EA11: D | EB11: D | EF11: D | EG11: D | EH11: D | EI11: D | EQ11: D | EX11: T | EY11: D | EZ11: D | FL11: P
B12: s/n 228 | Z12: T | CD12: M
B13: =SUM(G13:FP13) -> 96 | L13: 1.9 | AG13: 9.5 | AO13: 4 | BW13: 1.9 | BY13: 3.3 | CB13: 3.1 | CC13: 7.2 | CD13: 3.6 | CE13: 1.6 | CF13: 9.8 | CL13: 2.9 | CM13: 4.4 | CV13: 1 | CW13: 6.9 | CY13: 7.3 | DB13: 2.4 | DG13: 2 | DI13: 2.3 | DL13: 6.1 | DM13: 6.9 | EA13: 3.6 | EB13: 4.3
B14: OCCAS | L14: T | N14: M | V14: M | Y14: D | Z14: M | AA14: S | AB14: S | AC14: S | AD14: S | AE14: S | AF14: S | AG14: S | AH14: S | AI14: S | AJ14: S | AK14: S | AL14: S | AM14: S | AN14: S | AO14: S | AP14: S | AQ14: S | AR14: M | AU14: T | AV14: D | AX14: D | AY14: M | BA14: D? | BB14: M | BC14: T/Y | BD14: Practical Training Bod | BT14: D | BW14: T | BX14: T | CA14: D | CD14: M | CE14: M? | CI14: M | CN14: P | CO14: M | CQ14: D | CR14: D | CW14: D | CX14: D | CY14: D | CZ14: D | DA14: D | DB14: D | DC14: D | DD14: D | DE14: D | DF14: D | DG14: D | DH14: D | DJ14: P | DN14: Y | DP14: M | DT14: M? | DU14: M? | DV14: M? | DX14: T | EA14: T | EC14: M | ED14: M | EH14: Practical training F900EX EASy s/n145 F-GSNA | EV14: Practical Training F2THLX s/n230 F-HSAM | FM14: M? | FQ14: M
Z15: M | AA15: M | AI15: T | AN15: M | AO15: M | AP15: D | AQ15: M | AX15: M | BD15: Y | BE15: M | BP15: Y | BS15: Y | CR15: M | CZ15: M | DG15: F | DH15: F | DI15: F | DN15: M | DX15: M | EQ15: M
B16: =SUM(G16:FP16) -> 149.1 | L16: 2.8 | V16: 1.4 | Y16: 2 | Z16: 2.3 | AI16: 2.3 | AN16: 4 | AO16: M | AP16: 5.5 | AQ16: 1.8 | AR16: 1.8 | AU16: 1.9 | AV16: 3 | AX16: 6 | AY16: 2.5 | BB16: 2.5 | BC16: 4.3 | BD16: 7 | BE16: 1 | BP16: 1 | BS16: 1 | BT16: 3.2 | BW16: 2.9 | BX16: 2.5 | CA16: 2.3 | CI16: 2.6 | CN16: 2.2 | CQ16: 7.3 | CR16: 8.4 | CW16: 13.6 | CY16: 1.9 | CZ16: 0.9 | DB16: 7.1 | DC16: 5.5 | DD16: 6.5 | DE16: 2 | DF16: 3.1 | DG16: 3.2 | DH16: 12.9 | DI16: 2.3 | DJ16: 2 | EA16: 1.5 | EC16: 1.1
B17: 7X | G17: D | H17: D | I17: D | J17: D | K17: D | L17: D | N17: D | O17: D | Q17: D | R17: D | S17: D | T17: D | U17: D | V17: D | W17: D | Z17: P | AN17: D | AQ17: P | AR17: P | AS17: D | AT17: D | AV17: D | BA17: D | BJ17: D | BK17: D | BM17: D | BP17: D | BQ17: D | BR17: D | BS17: D | BT17: D | BY17: D | BZ17: Jet Expo | CB17: D | CD17: D | CF17: D | CG17: D | CH17: D | CI17: D | CJ17: D | CK17: D | CL17: D | CM17: D | CN17: CIBAS | CQ17: D | CR17: D | CS17: D | CT17: D | CU17: D | CV17: D | CW17: D | CX17: D | CY17: D | CZ17: D | DA17: D | DB17: D | DC17: D | DD17: D | DE17: D | DF17: D | DG17: D | DH17: D | DI17: D | DJ17: D | DK17: D | DT17: D | DW17: T | DY17: D | EA17: D | EB17: D | ED17: Y | EE17: Dubaï | EL17: Y | EM17: P | EP17: NBAA | ES17: P | EU17: D | EV17: D | EW17: D | EX17: D | EY17: D | EZ17: D
B18: s/n 207 | AR18: D | DY18: Y | EE18: P | EH18: P | EJ18: D | EK18: D | EN18: D | EQ18: P | ER18: P
B19: =SUM(G19:FP19) -> 249.3 | J19: 9.1 | K19: 1.2 | N19: 2.8 | O19: 4.8 | Q19: 0.9 | S19: 10.2 | U19: 11.8 | W19: 3.1 | Z19: 5.6 | AN19: 7.7 | AQ19: 9 | AR19: 4.1 | AT19: 5.8 | AV19: 4.7 | BA19: 4.5 | BJ19: 1.8 | BK19: 2.5 | BM19: 4 | BP19: 7.8 | BR19: 5.8 | BS19: 11.1 | BT19: 12.8 | BY19: 3.3 | CB19: 3.1 | CD19: 4.7 | CF19: 10.3 | CH19: 4.3 | CI19: 2.1 | CJ19: 2.3 | CM19: 4.8 | CS19: 1.9 | CT19: 2.2 | CU19: 4 | CW19: 3.9 | CX19: 2.7 | CY19: 2.2 | CZ19: 2.1 | DB19: 3.7 | DC19: 3.9 | DD19: 4.4 | DE19: 6 | DF19: 4.3 | DH19: 5 | DI19: 1.9 | DJ19: 1.8 | DK19: 12.5 | DT19: 3.6 | DY19: 3.8 | EA19: 6.8 | EB19: 6.6
B21: s/n
B22: =SUM(G22:FP22) -> 0
EW23: COP 21
B24: Missions en attentes | BS24: ATO | DY24: Y? | EV24: M? | FG24: M? | FJ24: M | FL24: MEP | FM24: T | FN24: T | FO24: T | FP24: T | FQ24: T | FR24: T | FS24: T | FT24: T | FU24: T | FV24: MEP
AV25: D/S | AY25: D/S | AZ25: D/S | BA25: D/S | BB25: D/S | BC25: D/S | BD25: D/S | BE25: D/S | BF25: D/S | BG25: D/S | BH25: D/S | BI25: D/S | BJ25: D/S | BK25: D/S | BL25: D/S | BP25: T | BQ25: T | BR25: T | BS25: T | BT25: T | BU25: T | BV25: T | BW25: T | BX25: T | BY25: T | BZ25: T | CA25: T | DY25: Y?
N26: ATO | O26: ATO | P26: ATO | DB26: ATO | DC26: ATO | DF26: ATO TRI F2000 Ex Easy
B27: H 1 sem | D27: =SUM('[1]2015-1 '!B27:C27) -> 
B28: 20 | D28: Réu | E28: ATO
B29: 7x | C29: 9z | D29: 2z | E29: 5x
B30: 50 | C30: 9c | D30: 2c | E30: 8x | G30: 1 | H30: 2 | I30: 3 | J30: 4 | K30: 5 | L30: 6 | M30: 7 | N30: 8 | O30: 9 | P30: 10 | Q30: 11 | R30: 12 | S30: 13 | T30: 14 | U30: 15 | V30: 16 | W30: 17 | X30: 18 | Y30: 19 | Z30: 20 | AA30: 21 | AB30: 22 | AC30: 23 | AD30: 24 | AE30: 25 | AF30: 26 | AG30: 27 | AH30: 28 | AI30: 29 | AJ30: 30 | AK30: 31 | AL30: 1 | AM30: 2 | AN30: 3 | AO30: 4 | AP30: 5 | AQ30: 6 | AR30: 7 | AS30: 8 | AT30: 9 | AU30: 10 | AV30: 11 | AW30: 12 | AX30: 13 | AY30: 14 | AZ30: 15 | BA30: 16 | BB30: 17 | BC30: 18 | BD30: 19 | BE30: 20 | BF30: 21 | BG30: 22 | BH30: 23 | BI30: 24 | BJ30: 25 | BK30: 26 | BL30: 27 | BM30: 28 | BN30: 29 | BO30: 30 | BP30: 31 | BQ30: 1 | BR30: 2 | BS30: 3 | BT30: 4 | BU30: 5 | BV30: 6 | BW30: 7 | BX30: 8 | BY30: 9 | BZ30: 10 | CA30: 11 | CB30: 12 | CC30: 13 | CD30: 14 | CE30: 15 | CF30: 16 | CG30: 17 | CH30: 18 | CI30: 19 | CJ30: 20 | CK30: 21 | CL30: 22 | CM30: 23 | CN30: 24 | CO30: 25 | CP30: 26 | CQ30: 27 | CR30: 28 | CS30: 29 | CT30: 30 | CU30: 1 | CV30: 2 | CW30: 3 | CX30: 4 | CY30: 5 | CZ30: 6 | DA30: 7 | DB30: 8 | DC30: 9 | DD30: 10 | DE30: 11 | DF30: 12 | DG30: 13 | DH30: 14 | DI30: 15 | DJ30: 16 | DK30: 17 | DL30: 18 | DM30: 19 | DN30: 20 | DO30: 21 | DP30: 22 | DQ30: 23 | DR30: 24 | DS30: 25 | DT30: 26 | DU30: 27 | DV30: 28 | DW30: 29 | DX30: 30 | DY30: 31 | DZ30: 1 | EA30: 2 | EB30: 3 | EC30: 4 | ED30: 5 | EE30: 6 | EF30: 7 | EG30: 8 | EH30: 9 | EI30: 10 | EJ30: 11 | EK30: 12 | EL30: 13 | EM30: 14 | EN30: 15 | EO30: 16 | EP30: 17 | EQ30: 18 | ER30: 19 | ES30: 20 | ET30: 21 | EU30: 22 | EV30: 23 | EW30: 24 | EX30: 25 | EY30: 26 | EZ30: 27 | FA30: 28 | FB30: 29 | FC30: 30 | FD30: 1 | FE30: 2 | FF30: 3 | FG30: 4 | FH30: 5 | FI30: 6 | FJ30: 7 | FK30: 8 | FL30: 9 | FM30: 10 | FN30: 11 | FO30: 12 | FP30: 13 | FQ30: 14 | FR30: 15 | FS30: 16 | FT30: 17 | FU30: 18 | FV30: 19 | FW30: 20 | FX30: 21 | FY30: 22 | FZ30: 23 | GA30: 24 | GB30: 25 | GC30: 26 | GD30: 27 | GE30: 28 | GF30: 29 | GG30: 30 | GH30: 31
B31: PMI | G31: Réu | H31: Réu | M31: Réu | N31: D | O31: SC | P31: SC | V31: M | W31: Réu | AA31: Réu | AB31: SC | AD31: ATO | AE31: S1 | AF31: S1 | AG31: S | AJ31: S2 | AK31: S1 | AN31: S1 | AO31: S1 | AP31: S1 | AQ31: SC | AR31: M | BQ31: Réu | BR31: Réu | BS31: Mep | BW31: Mep | BX31: M | BY31: M | BZ31: Mep | CA31: M | CS31: Simu | CT31: SC | CU31: Réu | CV31: Med | CX31: Simu | CZ31: M | DA31: Réu | DB31: DFS | DC31: ATO | DF31: Réu | DG31: ATO | DK31: Réu | DT31: Réu | DV31: DFS | ED31: M | EE31: P | EH31: P | EI31: Réu | EO31: Mep | EP31: Réu Sphynx | ES31: Mep | EW31: Réu | EX31: T | EY31: D | EZ31: D | FA31: D | FD31: Réu | FJ31: Simu | FL31: EI | FM31: M | FN31: EI | FQ31: T | FR31: Réu | FS31: EI | FT31: EI | FU31: EI
B32: E | C32: E | D32: E | G32: Réu | H32: Simu | P32: Réu | V32: Simu | AA32: Réu | AN32: M | AO32: M | AQ32: M | BS32: Y | BX32: T | BZ32: Réu | CU32: Mep | CV32: Mep | CZ32: Simu | DC32: ATO | DF32: Réu | DQ32: Mep | EX32: D | FJ32: EI | FV32: Simu
B33: E | C33: E | D33: E | AA33: S2 | AO33: M | AQ33: Mep | BX33: Mep | BZ33: Mep
B34: =SUM(G34:GE34) -> 89.7 | D34: ='2015-1 '!B34 -> 143.8 | H34: 1 | N34: 2.8 | V34: 3.4 | AG34: 9.5 | AO34: 1.1 | AQ34: 1.8 | AR34: 1.8 | BS34: 1 | BX34: 3.2 | BY34: 1.6 | CS34: 4 | CX34: 4 | CZ34: 4.9 | DB34: 2.4 | DV34: 2.2 | ED34: 1.7 | EE34: 6.3 | EH34: 6.7 | EX34: 3 | EY34: 1 | EZ34: 10 | FA34: 8.9 | FJ34: 4 | FM34: 1.9 | FQ34: 1.5
B35: PGU | H35: Simu | I35: T | L35: T | M35: Réu | O35: Réu | P35: Simu | S35: Mep | U35: Réu | V35: Réu | W35: D | Z35: M | AA35: Réu | AB35: S1 | AC35: S2 | AD35: S2 | AG35: M | AH35: S1 | AI35: S1 | AJ35: S1 | BJ35: Med | BK35: Med | BM35: D | BP35: Saint Cloud | BT35: SC | BW35: Simu | BX35: T | BY35: Réu | CD35: M | CN35: Mep | CO35: Mep | CP35: D | CQ35: D | CR35: D | CS35: D | CT35: D | CU35: D | CV35: D | CW35: D | CX35: D | CY35: Mep | DF35: Simu | DG35: F | DH35: F | DI35: F | DJ35: Réu | DM35: Simu | DN35: M | DV35: Simu | DW35: T | DX35: M | DY35: D | EA35: T | EB35: Réu | EC35: Réu | ED35: M | EE35: Réu | EH35: Mep | EI35: D | EJ35: D | EK35: D | EL35: D | EO35: Saint Cloud | EU35: D | EV35: D | EW35: D | EX35: D | EY35: D | EZ35: D | FA35: D | FD35: Simu | FE35: Mep | FG35: M | FJ35: Saint Cloud | FQ35: Mep | FR35: M | FS35: Simu | FT35: Med | FU35: Med
B36: E | C36: E | D36: E | O36: Réu | S36: D | Z36: M | AA36: M | AI36: ANG | AJ36: M | BQ36: Réu | BR36: Réu | BT36: Simu | CD36: Simu | DM36: SC | DV36: M? | EP36: Med | EQ36: Med | ER36: DFS | FD36: Réu | FE36: T | FJ36: EI | FK36: ATO | FM36: Réu | FQ36: Y | FR36: Mep
B37: E | C37: E | D37: E | E37: C | AA37: Mep | DM37: SC | FE37: Mep | FK37: Simu
B38: =SUM(G38:GE38) -> 130.4 | D38: ='2015-1 '!B38 -> 89.7 | H38: 4 | L38: 2.8 | S38: 0.9 | W38: 3.1 | Z38: 2.3 | AJ38: 0.5 | BM38: 4.3 | BT38: 4 | BW38: 4 | BX38: 2.5 | CD38: 5.6 | CS38: 1.9 | CT38: 2.2 | CU38: 4 | CW38: 3.9 | CX38: 2.7 | DF38: 4 | DG38: 2 | DI38: 2.3 | DM38: 4 | DW38: 2.3 | DY38: 3.8 | EA38: 1.5 | ED38: 1.7 | EJ38: 6.7 | EL38: 8 | ER38: 2 | EU38: 11 | EW38: 2 | EX38: 1.8 | EZ38: 10.6 | FC38: 4 | FD38: 4 | FE38: 2 | FG38: 0 | FK38: 4 | FS38: 4
B39: DBR | H39: Simu | AQ39: Sc | AR39: M | AS39: D | AT39: D | AU39: T | AV39: D | AW39: Sc | AX39: D | BA39: D | BC39: T/Y | BD39: Réu | BE39: M | BI39: Mep | BJ39: T | BK39: Mep | BL39: Med | BM39: Med | BP39: Y | BR39: T | BS39: Mep | BT39: D | BW39: Saint Cloud | CD39: Recurrent 7X FAA | CL39: Simu | CM39: SC | CN39: T | CR39: Mep | CT39: M | CU39: M | CV39: T? | CZ39: Réu | DA39: Réu | DB39: D | DC39: ATO | DF39: Réu | DH39: Réu | DI39: Réu | DJ39: P | DL39: P | DM39: P | DQ39: Mep | DT39: Simu | DV39: Mep | DW39: T | DX39: T | EA39: D | EB39: D | EC39: M | EE39: Réu | EQ39: M | ER39: PL | ES39: PL | EU39: D | EV39: D | EW39: D | EX39: D | EY39: D | EZ39: PL | FD39: Réu | FE39: PL | FF39: D | FG39: PL | FJ39: T | FK39: Simu | FL39: Réu | FQ39: T | FR39: Réu | FS39: - | FT39: M?
B40: E | C40: E | D40: E | AQ40: M | AR40: D | BC40: Mep | BJ40: Mep | BK40: T | BP40: Mep | BR40: Y | BW40: Simu | BX40: Réu | BY40: M | CA40: Réu | CR40: M | CV40: S | CZ40: Simu | DF40: Réu | DH40: Réu | DQ40: M | DT40: Réu | DV40: Réu | ES40: Réu | FR40: M
B41: E | C41: E | AQ41: Mep | BK41: Mep | BX41: Réu | DQ41: Mep | DV41: Mep
B42: =SUM(G42:GE42) -> 159.9 | D42: ='2015-1 '!B42 -> 179.3 | H42: 1 | AQ42: 1.8 | AR42: 1.8 | AT42: 5.8 | AU42: 1.9 | AV42: 3 | AX42: 3 | BA42: 4.5 | BC42: 4.3 | BE42: 1 | BJ42: 2 | BK42: 3 | BP42: 1 | BR42: 6.1 | BT42: 3.2 | BW42: 4 | BY42: 1.6 | CL42: 27 | CN42: 3.1 | CR42: 1.8 | CU42: 2.5 | CZ42: 4 | DB42: 2.4 | DJ42: 2 | DL42: 6.1 | DM42: 6.9 | DQ42: 1.2 | DT42: 4 | DW42: 2.3 | DX42: 1.9 | EA42: 6.8 | EB42: 6.6 | EC42: 1.1 | EQ42: 2.2 | EU42: 7.2 | EW42: 2.3 | EY42: 7 | FF42: 3 | FJ42: 2 | FK42: 4 | FM42: 2 | FQ42: 1.5
B43: OFR | G43: Mep | U43: Simu | V43: Réu | AN43: Mep | AO43: Mep | AQ43: P | AR43: P | BI43: Recurrent FAA F2000EAsy | BQ43: Simu | BR43: Y | BS43: Mep | BW43: T | BX43: Réu | BY43: D | BZ43: Jet Expo | CB43: D | CD43: Saint Cloud | CL43: Simu | CM43: OAB | CU43: M | CW43: D | CX43: D | CY43: D | CZ43: D | DA43: D | DB43: D | DC43: D | DD43: D | DE43: D | DF43: D | DG43: D | DH43: D | DT43: Réu | DV43: Mep | DW43: Réu | DX43: T | EA43: Saint Cloud | EF43: D | EG43: D | EH43: D | EI43: D | EJ43: Mep | EK43: Y | EL43: Mep | EO43: Mep | EP43: Mep | EQ43: Mep | ER43: Y | ES43: Mep | EV43: Réu | EW43: Y | EX43: Y | EY43: Réu | EZ43: Réu | FD43: Réu | FE43: T | FF43: Réu | FK43: ATO | FL43: EI | FM43: ATO | FN43: ATO | FQ43: Réu | FR43: Réu | FT43: T
B44: E | C44: C | D44: I | AN44: Y | BR44: Mep | CD44: Mep | CF44: LPE | CG44: LPE | CH44: LPE | DV44: Réu | DW44: Mep | EB44: Réu | EK44: Mep | ER44: Mep | EX44: Mep | FG44: Réu
CD45: Réu
B46: =SUM(G46:GE46) -> 139.4 | D46: ='2015-1 '!B46 -> 244.5 | AN46: 9.5 | AQ46: 9 | AR46: 1 | BQ46: 27 | BW46: 2.9 | BY46: 3.3 | CB46: 3.1 | CD46: Mep | CU46: 2 | CW46: 13.6 | CY46: 1.9 | DB46: 7.1 | DC46: 5.5 | DD46: 6.5 | DE46: 2 | DF46: 3.1 | DG46: 1.2 | DH46: 12.9 | DX46: 1.9 | EF46: 6 | EH46: 3.6 | EI46: 10.7 | ER46: 10 | EW46: 2.9 | EX46: 2 | FE46: 3 | FS46: 2
B47: JPL | G47: Mep | H47: Réu | I47: Réu | L47: Réu | O47: D | Q47: D | V47: Réu | W47: Mep | X47: DFS | Z47: P | AA47: S1 | AC47: S1 | AD47: S1 | BB47: Mep | BC47: T | BD47: Mep | BE47: M | BF47: D | BG47: D | BJ47: D | BK47: D | BW47: Réu | BX47: Réu | BY47: Mep | BZ47: T | CA47: T | CB47: T | CF47: ATO | CG47: ATO | CK47: Simu | CL47: ATO | CN47: P | CQ47: D | CR47: D | CT47: M | CU47: M | CY47: Saint Cloud | DG47: F | DH47: F | DI47: F | DJ47: SC | DM47: Réu | DN47: Mep | DO47: Réu | DP47: Réu | DT47: M | DU47: Y | DV47: Y | DW47: Y | DX47: ATO | EB47: Mep | EC47: Réu | EE47: Mep | EH47: ATO | EI47: ATO | EK47: ATO | EL47: ATO | EP47: Mep | EQ47: Réu | EW47: Réu | EX47: Réu | EZ47: Simu | FD47: Réu | FE47: T | FF47: T | FJ47: Med | FK47: Med | FL47: Réu | FM47: Réu | FN47: Réu | FQ47: Saint Cloud
B48: E | C48: E | D48: E | L48: T | Q48: Mep | W48: Y | BB48: M | BC48: T | BD48: T | BE48: D | BW48: M | CB48: Mep | CL48: Simu | CU48: Simu | CY48: Simu | CZ48: M | DA48: T | DB48: SC | DC48: ATO | DN48: Y | DP48: M | DT48: Mep | DW48: Mep | EB48: Réu | EC48: Mep | EE48: Réu | EH48: Réu | EP48: Réu | EQ48: M | EW48: Simu | FE48: D | FK48: Mep? | FQ48: T | FS48: EI
W49: Mep | BB49: Mep | BD49: Mep | CZ49: Mep | DA49: Mep | DN49: Mep | EE49: Mep | EP49: Mep
B50: =SUM(G50:GE50) -> 120.3 | D50: ='2015-1 '!B50 -> 185.8 | L50: 2.8 | O50: 4.8 | Q50: 0.9 | X50: 2.1 | Z50: 2.3 | BB50: 2.5 | BD50: 1 | BE50: 5.5 | BG50: 5.5 | BJ50: 1.8 | BK50: 2.5 | BW50: 1.9 | BZ50: 5.9 | CA50: 7.8 | CB50: 1.9 | CK50: 4 | CL50: 4 | CN50: 2.2 | CQ50: 7.3 | CR50: 6.6 | CU50: 6 | CY50: 4 | CZ50: 0.9 | DA50: 1.4 | DG50: 2.2 | DI50: 2.2 | DN50: 0.4 | DW50: 5.8 | EK50: 3 | EL50: 3 | EQ50: 2.2 | EW50: 4 | EZ50: 2 | FE50: 6.9 | FF50: 2 | FQ50: 1
B51: OPE | H51: Mep | I51: D | J51: D | K51: D | U51: Simu | V51: M | Z51: P | AA51: Réu | AI51: T | AJ51: T | AK51: S2 | AL51: S1 | AM51: S1 | AN51: S2 | AO51: D | AP51: D | BJ51: Mep | BK51: Réu | BL51: Mep | BM51: Y | BN51: Y | BP51: D | BQ51: D | BR51: D | BS51: Réu | BT51: Simu | CD51: Recurrent 7X FAA | CL51: Simu | CO51: D | CR51: Réu | CU51: Saint Cloud | CY51: Simu | DA51: Mep | DC51: Mep | DD51: Mep | DE51: D | DF51: D | DG51: D | DH51: D | DI51: D | DJ51: D | DK51: D | DO51: Mep | DP51: Réu | DS51: Mep | DU51: SC | DV51: Med | DW51: Med | DX51: Med | DY51: Réu | EA51: T | ED51: Mep | EH51: Saint Cloud | EM51: P | EP51: NBAA | ES51: P | EX51: Réu | FB51: D | FC51: D | FD51: D | FE51: D | FF51: D | FG51: Mep | FJ51: Simu | FK51: ATO | FL51: P | FM51: ATO | FN51: ATO | FQ51: T | FS51: Simu | FT51: REU | FU51: EI
B52: E | C52: E | D52: E | AK52: Simu | AN52: M | BJ52: T | BS52: M | CU52: Réu | CV52: T? | DA52: Y | ED52: Réu | EH52: Réu | EI52: Réu | EK52: Mep | EL52: M | EQ52: P | ER52: P | EX52: D | FF52: Mep | FT52: T
D53: C | BJ53: Mep | CU53: Simu | ED53: Mep | EL53: Mep
B54: =SUM(G54:GE54) -> 177.1 | D54: ='2015-1 '!B54 -> 168.6 | J54: 9.1 | K54: 1.2 | U54: 4 | V54: 1.4 | Z54: 3.3 | AI54: 2.3 | AJ54: 1 | AK54: 0.5 | AO54: 5.3 | AP54: 5.5 | BJ54: 1.6 | BM54: 8.8 | BP54: 7.8 | BR54: 5.8 | BS54: 0 | BT54: 4 | CL54: 27 | CU54: 4 | CY54: 4 | DA54: 1 | DE54: 6 | DF54: 4.3 | DH54: 5 | DI54: 1.9 | DJ54: 1.8 | DK54: 12.5 | EA54: 1.5 | EL54: 4 | EM54: 11 | EQ54: 3 | ES54: 8.5 | FC54: 4 | FD54: 4 | FJ54: 4 | FL54: 2 | FS54: 6
B55: MDU | G55: Réu | H55: Simu | L55: P | M55: Simu | N55: Réu | O55: Réu | P55: Simu | S55: D | T55: D | U55: D | V55: D | Y55: D | Z55: M | AA55: Réu | AB55: S2 | AD55: M? | AE55: Simu | AG55: M | AH55: S2 | AI55: S2 | AJ55: Y | AK55: Y | AL55: S2 | AM55: S2 | AN55: Mep | AO55: S2 | AP55: S2 | AR55: T | BS55: M | BT55: Simu | BW55: T | BX55: Réu | BY55: D | BZ55: Jet Expo | CB55: D | CD55: M | CF55: SC | CG55: M | CI55: M | CK55: Y | CL55: Réu | CM55: Réu | CO55: Réu | CY55: Mep | CZ55: Y | DA55: Mep | DB55: Simu | DC55: ATO | DF55: Saint Cloud | DM55: Simu | DN55: Mep | DO55: Mep | DP55: Med | DQ55: Med | DT55: M | DU55: M? | DV55: Simu | DW55: T | DX55: M | EB55: Simu | ED55: Y | EE55: Dubaï | EL55: Y | EQ55: D | ER55: Mep | ES55: Y | ET55: Mep | EW55: P | EZ55: Simu | FD55: Simu | FE55: Mep | FF55: Y | FG55: Mep | FJ55: M | FL55: Mep | FM55: Y | FN55: Mep | FQ55: Mep | FR55: M | FS55: Simu
B56: C | C56: E | D56: E | N56: M | O56: Réu | AJ56: M | AN56: S | AO56: M | BT56: 4 | CK56: Mep | DF56: Simu | DJ56: Simu | DM56: SC | DN56: Y | DO56: Réu | DV56: M? | DW56: M? | FD56: Réu | FQ56: Y | FR56: Mep
B57: E | C57: E | D57: E | E57: E | N57: Mep | O57: Réu | AN57: Mep | AO57: M | CK57: Simu | DM57: SC | DN57: Mep | DO57: Mep
B58: =SUM(G58:GE58) -> 145.1 | D58: ='2015-1 '!B58 -> 150.1 | H58: 4 | L58: 1.9 | M58: 4 | S58: 9.3 | U58: 11.8 | Y58: 2 | Z58: 1.2 | AE58: 4 | AJ58: 0.5 | AN58: 1.7 | AO58: 1.1 | BT58: 4 | BW58: 2.9 | BY58: 3.3 | CB58: 3.1 | CG58: 1.9 | CI58: 2.6 | CK58: 5.1 | CZ58: 10 | DF58: 4 | DJ58: 4 | DN58: 0.4 | DW58: 2.3 | ED58: 6.5 | EL58: 7 | EQ58: 5 | ES58: 11 | EW58: 2 | EZ58: 4 | FC58: 4 | FD58: 4 | FE58: 2 | FM58: 10.5 | FS58: 4
B59: PCA | I59: Réu | M59: Simu | N59: Réu | O59: D | P59: Réu | Z59: M | AA59: Réu | AB59: Réu | AC59: Mep | AD59: ATO | AE59: S2 | AF59: S2 | AG59: S | AI59: T | BI59: Recurrent FAA F2000EAsy | BQ59: Simu | BS59: D | BT59: D | BW59: M | BX59: T | BY59: Réu | BZ59: Réu | CA59: M | CD59: D | CE59: D | CF59: D | CG59: M | CK59: Saint Cloud | CR59: Mep | CS59: Simu | CU59: Réu | CV59: P | CW59: P | CX59: P | CY59: P | DA59: Mep | DB59: Réu | DC59: ATO | DF59: Simu | DG59: Réu | DL59: Mep | DM59: Réu | DN59: Réu | DO59: Réu | DP59: Réu | DQ59: Réu | DR59: Mep | DT59: ATO | DU59: ATO | DV59: ATO | EA59: D | EB59: D | EC59: M | ED59: ATO | EE59: ATO | EH59: ATO | EI59: ATO | EK59: ATO | EL59: ATO | EN59: D | ER59: Réu | ES59: Simu | EV59: Mep | EW59: Réu | EX59: T | EZ59: Simu | FB59: D | FC59: D | FD59: D | FE59: D | FF59: D | FG59: Mep | FJ59: Réu | FK59: ATO | FL59: P | FN59: EI | FP59: Mep | FQ59: Réu | FR59: Réu | FS59: Mep | FT59: REU
B60: E | C60: C | D60: E | M60: Réu | N60: M | Z60: Simu | AA60: Réu | AB60: Réu | AC60: Réu | AD60: M? | BZ60: M | CC60: D | CK60: Y | CL60: ATO | CR60: M | CU60: M | DA60: Y | DF60: ATO | EE60: Réu | EV60: Réu | EW60: Réu | FF60: Mep | FK60: Simu | FR60: Mep | FS60: Réu?
B61: E | C61: E | N61: Mep | AC61: Mep | CK61: Mep | DF61: Réu | EV61: Mep
B62: =SUM(G62:GE62) -> 149.9 | D62: ='2015-1 '!B62 -> 167.1 | O62: 4.8 | Z62: 3.1 | AG62: 9.5 | BQ62: 27 | BS62: 11.1 | BT62: 12.8 | BW62: 1.9 | BX62: 2.5 | BZ62: 2.6 | CC62: 7.2 | CD62: 2 | CE62: 1.6 | CF62: 9.8 | CG62: 1.9 | CK62: 1.1 | CR62: 1.8 | CS62: 4 | CU62: 2.5 | CV62: 1 | CW62: 6.9 | CY62: 7.3 | DA62: 1 | DF62: 4 | EA62: 3.6 | EB62: 4.3 | EC62: 1.1 | ES62: 4 | EX62: 2 | FK62: 4 | FL62: 2 | FT62: 1.5
B63: BSE | G63: X ou avion classique | U63: Simu | BQ63: Réu | BR63: Réu | BS63: Réu | BT63: Réu | BW63: Simu | BY63: Réu | BZ63: Réu | CA63: D | CD63: D | CF63: D | CG63: D | CH63: D | CI63: D | CJ63: D | CK63: D | CL63: D | CM63: D | CN63: CIBAS | CP63: Mep | CR63: Saint Cloud | CX63: Mep | CY63: Mep | CZ63: D | DA63: D | DB63: D | DC63: D | DD63: D | DE63: Mep | DF63: ATO | DG63: ATO | DM63: SC | DN63: M | DP63: M | DT63: D | DU63: M? | EB63: Med | ED63: Y | EE63: Dubaï | EL63: Y | EQ63: Simu | EV63: Saint Cloud | FC63: - | FD63: Réu | FE63: Mep | FF63: Mep | FG63: D | FH63: D | FI63: D | FJ63: D | FK63: D | FL63: D | FN63: ATO | FQ63: D | FR63: D | FS63: D | FT63: EI
B64: E | BS64: ATO | BZ64: M | CS64: Simu | DG64: ATO | EZ64: Simu
B65: E | C65: E
B66: =SUM(G66:GE66) -> 83.2 | D66: =SUM('[1]2015-1 '!B66:C66) ->  | BW66: 4 | BZ66: 2.6 | CA66: 2.3 | CD66: 4.7 | CF66: 10.3 | CH66: 4.3 | CI66: 2.1 | CJ66: 2.3 | CM66: 4.8 | CS66: 4 | CZ66: 2.1 | DB66: 3.7 | DC66: 3.9 | DD66: 4.4 | DT66: 3.6 | ED66: 6.4 | EL66: 6.7 | EQ66: 4 | EZ66: 3 | FJ66: 2 | FS66: 2
J67: 113j | AK67: 105 j | BB67: 109 j | CX67: 100j
B70: =SUM(G70:GE70) -> 0
B71: DEV | M71: DEV | N71: D | O71: D | P71: D | Q71: D | AM71: DEV | AN71: D | AT71: FLA | AU71: T | AV71: D | AW71: EGE | AX71: D | AY71: FLA | AZ71: D | BA71: HLA | BB71: D | BC71: T/Y | BD71: DEV | BE71: D | BF71: D | BG71: D | BL71: PRE | BM71: D | BN71: DEV | BO71: P | BP71: P | BQ71: P | BR71: P | BZ71: FLA | CA71: D | CD71: Simu | CE71: JLD | CF71: D | CG71: D | CH71: D | CI71: D | CJ71: D | CK71: D | CL71: D | CM71: D | CN71: CIBAS | CQ71: Mep | CV71: SDD | CW71: Mep | CX71: Mep | CY71: D | CZ71: D | DA71: D | DB71: D | DC71: D | DD71: D | DE71: D | DF71: D | DG71: D | DH71: D | DI71: D | DJ71: D | DK71: D | DO71: HLA | DP71: Y? | DQ71: Y? | DS71: FLA | DT71: D | DX71: FXG | DY71: D | DZ71: JLD | EA71: D | EB71: D | FJ71: Simu
AN72: FXG | AO72: D | AP72: FXG | AQ72: P | AR72: P | AU72: DEV | AV72: D | AW72: DEV | AX72: M | BO72: FLA | BP72: Y | CB72: FVA | CC72: D | CD72: D | CE72: D | CF72: D | CV72: FVA | CW72: D | CX72: D | CY72: D | CZ72: D | DA72: D | DB72: D | DC72: D | DD72: D | DE72: D | DF72: D | DG72: D | DH72: D | DI72: EGE | DJ72: P | DK72: FLA | DL72: P | DM72: P | EC72: FLA | ED72: Y | EE72: Dubaï | EL72: Y
AQ73: BFE | AR73: D | AS73: D | AT73: D | BP73: Mep | CC73: PRE | CD73: D | CE73: M | CN73: BFE | CO73: Mep | CP73: Mep | CQ73: D | CR73: D | CS73: D | CT73: D | CU73: D | CV73: D | CW73: D | CX73: D | CY73: D | CZ73: Mep | EC73: FVA | ED73: Y | EE73: Dubaï | EL73: Y
B74: =SUM(G74:FP74) -> 0 | CE74: M | CK74: DEV | CL74: D | CM74: D | CN74: PDU | CO74: D | CR74: HLA | CS74: D | CT74: D | CU74: D | ED74: CCA | EE74: P | EH74: P | EI74: Simu
B75: EXT | AO75: PDV | AP75: D | BD75: AAG | BE75: M | BQ75: TBO | BR75: Y | EG75: CMA | EH75: Mep | EI75: D
AO76: CMA | AP76: Mep | AQ76: Y | AR76: Y | BC76: EXT | BD76: Y
AR77: Mep
B78: =SUM(G78:FP78) -> 0
G79: 1 | H79: 2 | I79: 3 | J79: 4 | K79: 5 | L79: 6 | M79: 7 | N79: 8 | O79: 9 | P79: 10 | Q79: 11 | R79: 12 | S79: 13 | T79: 14 | U79: 15 | V79: 16 | W79: 17 | X79: 18 | Y79: 19 | Z79: 20 | AA79: 21 | AB79: 22 | AC79: 23 | AD79: 24 | AE79: 25 | AF79: 26 | AG79: 27 | AH79: 28 | AI79: 29 | AJ79: 30 | AK79: 31 | AL79: 1 | AM79: 2 | AN79: 3 | AO79: 4 | AP79: 5 | AQ79: 6 | AR79: 7 | AS79: 8 | AT79: 9 | AU79: 10 | AV79: 11 | AW79: 12 | AX79: 13 | AY79: 14 | AZ79: 15 | BA79: 16 | BB79: 17 | BC79: 18 | BD79: 19 | BE79: 20 | BF79: 21 | BG79: 22 | BH79: 23 | BI79: 24 | BJ79: 25 | BK79: 26 | BL79: 27 | BM79: 28 | BN79: 29 | BO79: 30 | BP79: 31 | BQ79: 1 | BR79: 2 | BS79: 3 | BT79: 4 | BU79: 5 | BV79: 6 | BW79: 7 | BX79: 8 | BY79: 9 | BZ79: 10 | CA79: 11 | CB79: 12 | CC79: 13 | CD79: 14 | CE79: 15 | CF79: 16 | CG79: 17 | CH79: 18 | CI79: 19 | CJ79: 20 | CK79: 21 | CL79: 22 | CM79: 23 | CN79: 24 | CO79: 25 | CP79: 26 | CQ79: 27 | CR79: 28 | CS79: 29 | CT79: 30 | CU79: 1 | CV79: 2 | CW79: 3 | CX79: 4 | CY79: 5 | CZ79: 6 | DA79: 7 | DB79: 8 | DC79: 9 | DD79: 10 | DE79: 11 | DF79: 12 | DG79: 13 | DH79: 14 | DI79: 15 | DJ79: 16 | DK79: 17 | DL79: 18 | DM79: 19 | DN79: 20 | DO79: 21 | DP79: 22 | DQ79: 23 | DR79: 24 | DS79: 25 | DT79: 26 | DU79: 27 | DV79: 28 | DW79: 29 | DX79: 30 | DY79: 31 | DZ79: 1 | EA79: 2 | EB79: 3 | EC79: 4 | ED79: 5 | EE79: 6 | EF79: 7 | EG79: 8 | EH79: 9 | EI79: 10 | EJ79: 11 | EK79: 12 | EL79: 13 | EM79: 14 | EN79: 15 | EO79: 16 | EP79: 17 | EQ79: 18 | ER79: 19 | ES79: 20 | ET79: 21 | EU79: 22 | EV79: 23 | EW79: 24 | EX79: 25 | EY79: 26 | EZ79: 27 | FA79: 28 | FB79: 29 | FC79: 30 | FD79: 1 | FE79: 2 | FF79: 3 | FG79: 4 | FH79: 5 | FI79: 6 | FJ79: 7 | FK79: 8 | FL79: 9 | FM79: 10 | FN79: 11 | FO79: 12 | FP79: 13 | FQ79: 14 | FR79: 15 | FS79: 16 | FT79: 17 | FU79: 18 | FV79: 19 | FW79: 20 | FX79: 21 | FY79: 22 | FZ79: 23 | GA79: 24 | GB79: 25 | GC79: 26 | GD79: 27 | GE79: 28 | GF79: 29 | GG79: 30 | GH79: 31
B80: CPA | H80: Mep | I80: D | J80: D | K80: D | L80: P | N80: D | AV80: D | BA80: D | BE80: D | BF80: D | BG80: D | BJ80: D | BK80: D | BQ80: D | BR80: D | BS80: D | BT80: D | BY80: D | BZ80: Jet Expo | CB80: D | CC80: D | CD80: D | CE80: D | CF80: D | CV80: P | CW80: P | CX80: P | CY80: P | DB80: D | DG80: F | DH80: F | DI80: F | EC80: Reu | ED80: Y | EE80: Dubaï | EL80: Y | EM80: P | EP80: NBAA | ES80: P | EY80: Reu | FG80: Reu | GI80: 25 au 31 Janvier 2015
B81: 7x | C81: 9z | D81: 2z | E81: 5x | F81: 8x | DI81: Réu | EQ81: P | ER81: P
B82: 50 | C82: 9c | D82: 2c
B83: =SUM('2015-1 '!G79:GE79)+SUM(G83:GH83) -> 237.1 | J83: 9.1 | K83: 1.2 | L83: 1.9 | N83: 2.8 | AV83: 4.7 | BA83: 4.5 | BE83: 4.5 | BG83: 5.5 | BJ83: 1.8 | BK83: 2.5 | BR83: 5.8 | BS83: 11.1 | BT83: 12.8 | BY83: 3.3 | CB83: 3.1 | CC83: 7.2 | CD83: 2 | CE83: 1.6 | CF83: 9.8 | CV83: 1 | CW83: 6.9 | CY83: 7.3 | DB83: 2.4 | DG83: 2 | DI83: 2.3
B84: CMO | S84: D | T84: D | U84: D | V84: D | Y84: D | Z84: P | AN84: D | AO84: D | AQ84: P | AR84: P | CA84: D | CD84: D | CI84: M | CL84: D | CM84: D | CN84: P | DJ84: P | DL84: P | DM84: P | DY84: D | EA84: D | EB84: D | EC84: Reu | EF84: D | EG84: D | EH84: D | EI84: D | EK84: Reu | EU84: D | EV84: D | EW84: D | EX84: D | EY84: D | EZ84: D | GI84: 1er au 03 Janvier
B85: 7x | C85: 9z | D85: 2z | E85: 5x | F85: 8x
B86: 50 | C86: 9c | D86: 2c
B87: =SUM('2015-1 '!G83:GE83)+SUM(G87:GH87) -> 199.2 | S87: 9.3 | U87: 11.8 | Y87: 2 | Z87: 2.3 | AN87: 7.7 | AO87: 5.3 | AQ87: 9 | AR87: 1 | CA87: 2.3 | CD87: 4.4 | CI87: 2.6 | CL87: 2.9 | CM87: 4.4 | CN87: 2 | DJ87: 2 | DL87: 6.1 | DM87: 6.9 | DY87: 3.8 | EA87: 6.8 | EB87: 6.6
B88: MFR | N88: D | O88: D | P88: D | Q88: D | S88: Mep | W88: D | Z88: P | BM88: D | BP88: D | BY88: D | BZ88: Jet Expo | CB88: D | CF88: D | CG88: D | CH88: D | CI88: D | CJ88: D | CK88: D | CL88: D | CM88: D | CN88: CIBAS | CQ88: Mep | DG88: F | DH88: F | DI88: F | DT88: D | ED88: Y | EE88: Dubaï | EL88: Y | EN88: D | EQ88: D | EW88: P | EX88: D | EY88: Reu
B89: 7x | C89: 9z | D89: 2z | E89: 5x | F89: 8x | S89: D | DI89: Réu | EC89: Reu | EY89: D | FG89: Reu
B90: 50 | C90: 9c | D90: 2c
B91: =SUM('2015-1 '!G87:GE87)+SUM(G91:GH91) -> 185.7 | S91: 0.8 | W91: 3.1 | Z91: 3.3 | BM91: 4 | BP91: 7.8 | BY91: 3.3 | CB91: 3.1 | CF91: 10.3 | CH91: 4.3 | CI91: 2.1 | CJ91: 2.3 | CM91: 4.8 | DG91: 2 | DI91: 2.3 | DT91: 3.6
B92: EXT | K92: ALA | L92: D | N92: NPA | O92: D | P92: ALA | Q92: D | AO92: KGI | AP92: D | AQ92: KGI | AR92: D | AS92: D | AT92: D | AU92: EXT | AV92: D | AW92: EXT | AX92: D | BP92: CBE | BQ92: D | BR92: D | BS92: CBE | BT92: D | BU92: D | CC92: LLA | CD92: D | CN92: CBE | CO92: D | CP92: RITA | CQ92: D | CR92: D | CS92: D | CT92: D | CU92: D | CV92: D | CW92: D | CX92: D | CY92: D | CZ92: D | DA92: D | DB92: D | DC92: D | DD92: D | DE92: D | DF92: D | DG92: D | DH92: D | DI92: D | DJ92: D | DK92: D | DZ92: LLA | EA92: D | EB92: D | ED92: KGI | EE92: P | EH92: P | EI92: KGI | EJ92: D | EK92: D | EX92: KGI | EY92: D
Q93: Mep | BN93: ALA | BO93: P | BP93: P | BQ93: P | BR93: P | BS93: NNE | BT93: D | CP93: ALA | CQ93: D | CR93: D | CV93: ALA | CW93: D | CX93: D | CY93: D | CZ93: D | DA93: D | DB93: D | DC93: D | DD93: D | DE93: D | DF93: D | DG93: D | DH93: D | EG93: NPA | EH93: Mep | EI93: D | EX93: ALA | EY93: D | EZ93: D
ET94: CBE | EU94: D | EV94: D | EW94: D | EX94: D | EY94: D
B95: =SUM(G95:FP95) -> 0

Sheet Légende
B2: AVIONS | G2: PILOTES | L2: ACTIVITES
D3: Falcon 900 Easy | I3: First Officer | L3: D | N3: Vol de démo
D4: Falcon 2000 Easy | G4: C | I4: Captain | L4: C | N4: Vol contractuel
D5: Falcon 7X | G5: I | I5: TRI | L5: S | N5: Vol de support
D6: Falcon 8X | G6: E | I6: TRE | L6: T | N6: Vol de training
D7: Falcon 900B & 900ex | I7: Qualif expirée | L7: M | N7: Vol de maintenance
D8: Falcon 2000 | L8: F | N8: Factory tour
D9: Falcon 50 | L9: X | N9: Avion en statique
D10: Falcon 20 | L10: Y | N10: Convoyage
D11: Falcon 5X | L11: P | N11: Présidence Dassault Aviation
L12: L | N12: Livraison
L13: MA | N13: Meeting aérien
L14: DFS | N14: Pilote loué à DFS
L15: Mep | N15: Mise en place
L16: Simu | N16: Simulateur
L17: Mal | N17: Maladie
L18: Med | N18: Visite médicale
L19: For | N19: Formation / Cours au sol
L20: Réu | N20: Réunion
L21: St Cd | N21: Réunion à St Cloud
L22: Lbg | N22: Réunion au Bourget
L23: Ist | N23: Réunion à Istres
N24: Repos / Vacances
N25: Récup
L26: PL | N26: Gestion Plannig
N27: Travail au sol
E58: janvier | I58: 1 | L58: 2014 | O58: PMI
E59: fevrier | I59: 2 | L59: 2015 | O59: PGU
E60: mars | I60: 3 | L60: 2016 | O60: DBR
E61: avril | I61: 4 | L61: 2017 | O61: OFR | R61: 1 | T61: 5 | U61: 6 | V61: 1
E62: mai | I62: 5 | L62: 2018 | O62: JPL
E63: juin | I63: 6 | L63: 2019 | O63: OPE | R63: =INDEX(D3:D10,R61) -> Falcon 900 Easy | T63: =INDEX(I58:I88,T61) -> 5 | U63: =INDEX(E58:E69,U61) -> juin | V63: =INDEX(L58:L69,V61) -> 2014
E64: juillet | I64: 7 | L64: 2020 | O64: MDU
E65: aout | I65: 8 | L65: 2021 | O65: PCA
E66: septembre | I66: 9 | L66: 2022 | O66: DEV
E67: octobre | I67: 10 | L67: 2023 | O67: EXT | T67: 8 | U67: 7 | V67: 7
E68: novembre | I68: 11 | L68: 2024 | O68: CPA
E69: decembre | I69: 12 | L69: 2025 | O69: CMO | T69: =INDEX(I58:I88,T67) -> 8 | U69: =INDEX(E58:E69,U67) -> juillet | V69: =INDEX(L58:L69,V67) -> 2020
I70: 13 | O70: MFR
I71: 14
I72: 15
I73: 16 | T73: 4
I74: 17 | T74: =INDEX(O58:O88,T73) -> OFR
I75: 18
I76: 19
I77: 20
I78: 21
I79: 22
I80: 23
I81: 24
I82: 25
I83: 26
I84: 27
I85: 28
I86: 29
I87: 30
I88: 31

Sheet stat
A1: D | B1: Dfs
A2: PMIGPO | B2: 2015-06-30
A10: bouton de mise à jour du nombre de jour d'immobilisation par avion | M10: falcon 7X | X10: falcon 900 easy | AI10: Falcon 2000 Easy | AT10: Falcon 8X | BE10: Falcon 900B | BP10: Falcon 2000 | CA10: Falcon 50 | CL10: Falcon 20 | CW10: ATO | CY10: Falcon 5X
I11: tableau de suivi des jours par type d'avion avion | M11: D | N11: C | O11: S | P11: T | Q11: M | R11: F | S11: X | T11: Y | U11: P | V11: L | W11: Dfs | X11: D | Y11: C | Z11: S | AA11: T | AB11: M | AC11: F | AD11: X | AE11: Y | AF11: P | AG11: L | AH11: Dfs | AI11: D | AJ11: C | AK11: S | AL11: T | AM11: M | AN11: F | AO11: X | AP11: Y | AQ11: P | AR11: L | AS11: Dfs | AT11: D | AU11: C | AV11: S | AW11: T | AX11: M | AY11: F | AZ11: X | BA11: Y | BB11: P | BC11: L | BD11: Dfs | BE11: D | BF11: C | BG11: S | BH11: T | BI11: M | BJ11: F | BK11: X | BL11: Y | BM11: P | BN11: L | BO11: Dfs | BP11: D | BQ11: C | BR11: S | BS11: T | BT11: M | BU11: F | BV11: X | BW11: Y | BX11: P | BY11: L | BZ11: Dfs | CA11: D | CB11: C | CC11: S | CD11: T | CE11: M | CF11: F | CG11: X | CH11: Y | CI11: P | CJ11: L | CK11: Dfs | CL11: D | CM11: C | CN11: S | CO11: T | CP11: M | CQ11: F | CR11: X | CS11: Y | CT11: P | CU11: L | CV11: Dfs | CW11: ATO | CX11: VHL | CY11: D | CZ11: C | DA11: S | DB11: T | DC11: M | DD11: F | DE11: X | DF11: Y | DG11: P | DH11: L | DI11: Dfs
L12: PMI | M12: 0 | N12: 0 | O12: 0 | P12: 7 | Q12: 1 | R12: 2 | S12: 0 | T12: 0 | U12: 0 | V12: 0 | W12: 0 | X12: 3 | Y12: 0 | Z12: 2 | AA12: 1 | AB12: 0 | AC12: 1 | AD12: 0 | AE12: 0 | AF12: 2 | AG12: 0 | AH12: 0 | AI12: 5 | AJ12: 0 | AK12: 0 | AL12: 1 | AM12: 4 | AN12: 0 | AO12: 0 | AP12: 4 | AQ12: 0 | AR12: 0 | AS12: 0 | AT12: 0 | AU12: 0 | AV12: 0 | AW12: 18 | AX12: 0 | AY12: 0 | AZ12: 0 | BA12: 0 | BB12: 0 | BC12: 0 | BD12: 0 | BE12: 0 | BF12: 0 | BG12: 0 | BH12: 0 | BI12: 0 | BJ12: 0 | BK12: 0 | BL12: 3 | BM12: 0 | BN12: 0 | BO12: 0 | BP12: 0 | BQ12: 0 | BR12: 0 | BS12: 2 | BT12: 0 | BU12: 0 | BV12: 0 | BW12: 0 | BX12: 0 | BY12: 0 | BZ12: 0 | CA12: 0 | CB12: 0 | CC12: 0 | CD12: 0 | CE12: 2 | CF12: 0 | CG12: 0 | CH12: 0 | CI12: 0 | CJ12: 0 | CK12: 0 | CL12: 0 | CM12: 0 | CN12: 0 | CO12: 0 | CP12: 0 | CQ12: 0 | CR12: 0 | CS12: 0 | CT12: 0 | CU12: 0 | CV12: 0 | CW12: 5 | CX12: 0 | CY12: 0 | CZ12: 0 | DA12: 0 | DB12: 0 | DC12: 0 | DD12: 0 | DE12: 0 | DF12: 0 | DG12: 0 | DH12: 0 | DI12: 0
L13: PGU | M13: 4 | N13: 0 | O13: 0 | P13: 0 | Q13: 1 | R13: 0 | S13: 2 | T13: 0 | U13: 0 | V13: 0 | W13: 0 | X13: 0 | Y13: 0 | Z13: 0 | AA13: 1 | AB13: 0 | AC13: 0 | AD13: 0 | AE13: 0 | AF13: 0 | AG13: 0 | AH13: 0 | AI13: 0 | AJ13: 0 | AK13: 2 | AL13: 2 | AM13: 1 | AN13: 0 | AO13: 0 | AP13: 0 | AQ13: 0 | AR13: 0 | AS13: 0 | AT13: 0 | AU13: 0 | AV13: 0 | AW13: 18 | AX13: 0 | AY13: 0 | AZ13: 0 | BA13: 0 | BB13: 0 | BC13: 0 | BD13: 0 | BE13: 0 | BF13: 0 | BG13: 0 | BH13: 0 | BI13: 1 | BJ13: 0 | BK13: 0 | BL13: 0 | BM13: 0 | BN13: 0 | BO13: 0 | BP13: 0 | BQ13: 0 | BR13: 0 | BS13: 0 | BT13: 0 | BU13: 0 | BV13: 0 | BW13: 0 | BX13: 0 | BY13: 0 | BZ13: 0 | CA13: 0 | CB13: 0 | CC13: 0 | CD13: 0 | CE13: 0 | CF13: 0 | CG13: 0 | CH13: 0 | CI13: 0 | CJ13: 0 | CK13: 0 | CL13: 0 | CM13: 0 | CN13: 0 | CO13: 0 | CP13: 0 | CQ13: 0 | CR13: 0 | CS13: 0 | CT13: 0 | CU13: 0 | CV13: 0 | CW13: 9 | CX13: 0 | CY13: 0 | CZ13: 0 | DA13: 0 | DB13: 0 | DC13: 0 | DD13: 0 | DE13: 0 | DF13: 0 | DG13: 0 | DH13: 0 | DI13: 0
L14: DBR | M14: 1 | N14: 0 | O14: 0 | P14: 2 | Q14: 3 | R14: 0 | S14: 0 | T14: 1 | U14: 0 | V14: 0 | W14: 0 | X14: 0 | Y14: 0 | Z14: 8 | AA14: 3 | AB14: 1 | AC14: 3 | AD14: 0 | AE14: 2 | AF14: 3 | AG14: 0 | AH14: 0 | AI14: 0 | AJ14: 0 | AK14: 5 | AL14: 2 | AM14: 1 | AN14: 0 | AO14: 0 | AP14: 2 | AQ14: 0 | AR14: 0 | AS14: 0 | AT14: 0 | AU14: 0 | AV14: 0 | AW14: 18 | AX14: 0 | AY14: 0 | AZ14: 0 | BA14: 0 | BB14: 0 | BC14: 0 | BD14: 0 | BE14: 1 | BF14: 0 | BG14: 0 | BH14: 0 | BI14: 1 | BJ14: 0 | BK14: 0 | BL14: 2 | BM14: 0 | BN14: 0 | BO14: 0 | BP14: 0 | BQ14: 0 | BR14: 0 | BS14: 0 | BT14: 0 | BU14: 0 | BV14: 0 | BW14: 0 | BX14: 0 | BY14: 0 | BZ14: 0 | CA14: 0 | CB14: 0 | CC14: 0 | CD14: 2 | CE14: 0 | CF14: 0 | CG14: 0 | CH14: 0 | CI14: 0 | CJ14: 0 | CK14: 0 | CL14: 0 | CM14: 0 | CN14: 0 | CO14: 0 | CP14: 0 | CQ14: 0 | CR14: 0 | CS14: 0 | CT14: 0 | CU14: 0 | CV14: 0 | CW14: 15 | CX14: 0 | CY14: 0 | CZ14: 0 | DA14: 0 | DB14: 0 | DC14: 0 | DD14: 0 | DE14: 0 | DF14: 0 | DG14: 0 | DH14: 0 | DI14: 0
L15: OFR | M15: 6 | N15: 0 | O15: 0 | P15: 5 | Q15: 0 | R15: 0 | S15: 0 | T15: 2 | U15: 1 | V15: 0 | W15: 0 | X15: 9 | Y15: 0 | Z15: 10 | AA15: 0 | AB15: 0 | AC15: 0 | AD15: 0 | AE15: 0 | AF15: 0 | AG15: 0 | AH15: 0 | AI15: 2 | AJ15: 0 | AK15: 10 | AL15: 1 | AM15: 2 | AN15: 0 | AO15: 0 | AP15: 1 | AQ15: 0 | AR15: 0 | AS15: 0 | AT15: 0 | AU15: 0 | AV15: 0 | AW15: 18 | AX15: 0 | AY15: 0 | AZ15: 0 | BA15: 0 | BB15: 0 | BC15: 0 | BD15: 0 | BE15: 0 | BF15: 0 | BG15: 0 | BH15: 0 | BI15: 0 | BJ15: 0 | BK15: 0 | BL15: 0 | BM15: 0 | BN15: 0 | BO15: 0 | BP15: 0 | BQ15: 0 | BR15: 0 | BS15: 0 | BT15: 0 | BU15: 0 | BV15: 0 | BW15: 0 | BX15: 0 | BY15: 0 | BZ15: 0 | CA15: 0 | CB15: 0 | CC15: 0 | CD15: 0 | CE15: 0 | CF15: 0 | CG15: 0 | CH15: 0 | CI15: 0 | CJ15: 0 | CK15: 0 | CL15: 0 | CM15: 0 | CN15: 0 | CO15: 0 | CP15: 0 | CQ15: 0 | CR15: 0 | CS15: 0 | CT15: 0 | CU15: 0 | CV15: 0 | CW15: 11 | CX15: 0 | CY15: 0 | CZ15: 0 | DA15: 0 | DB15: 0 | DC15: 0 | DD15: 0 | DE15: 0 | DF15: 0 | DG15: 0 | DH15: 0 | DI15: 0
L16: JPL | M16: 3 | N16: 0 | O16: 3 | P16: 4 | Q16: 1 | R16: 0 | S16: 0 | T16: 1 | U16: 3 | V16: 0 | W16: 0 | X16: 3 | Y16: 0 | Z16: 4 | AA16: 2 | AB16: 2 | AC16: 0 | AD16: 0 | AE16: 0 | AF16: 2 | AG16: 0 | AH16: 0 | AI16: 5 | AJ16: 0 | AK16: 4 | AL16: 0 | AM16: 0 | AN16: 0 | AO16: 0 | AP16: 3 | AQ16: 2 | AR16: 0 | AS16: 0 | AT16: 0 | AU16: 0 | AV16: 0 | AW16: 18 | AX16: 0 | AY16: 0 | AZ16: 0 | BA16: 0 | BB16: 0 | BC16: 0 | BD16: 0 | BE16: 0 | BF16: 0 | BG16: 0 | BH16: 0 | BI16: 0 | BJ16: 0 | BK16: 0 | BL16: 0 | BM16: 0 | BN16: 0 | BO16: 0 | BP16: 0 | BQ16: 0 | BR16: 0 | BS16: 0 | BT16: 0 | BU16: 0 | BV16: 0 | BW16: 0 | BX16: 0 | BY16: 0 | BZ16: 0 | CA16: 0 | CB16: 0 | CC16: 0 | CD16: 0 | CE16: 0 | CF16: 0 | CG16: 0 | CH16: 0 | CI16: 0 | CJ16: 0 | CK16: 0 | CL16: 0 | CM16: 0 | CN16: 0 | CO16: 0 | CP16: 0 | CQ16: 0 | CR16: 0 | CS16: 0 | CT16: 0 | CU16: 0 | CV16: 0 | CW16: 2 | CX16: 0 | CY16: 0 | CZ16: 0 | DA16: 0 | DB16: 0 | DC16: 0 | DD16: 0 | DE16: 0 | DF16: 0 | DG16: 0 | DH16: 0 | DI16: 0
L17: OPE | M17: 2 | N17: 0 | O17: 0 | P17: 3 | Q17: 3 | R17: 0 | S17: 0 | T17: 3 | U17: 0 | V17: 0 | W17: 0 | X17: 2 | Y17: 0 | Z17: 3 | AA17: 0 | AB17: 1 | AC17: 0 | AD17: 0 | AE17: 1 | AF17: 6 | AG17: 0 | AH17: 0 | AI17: 5 | AJ17: 0 | AK17: 24 | AL17: 1 | AM17: 0 | AN17: 0 | AO17: 0 | AP17: 3 | AQ17: 0 | AR17: 0 | AS17: 0 | AT17: 0 | AU17: 0 | AV17: 0 | AW17: 18 | AX17: 0 | AY17: 0 | AZ17: 0 | BA17: 0 | BB17: 0 | BC17: 0 | BD17: 0 | BE17: 0 | BF17: 0 | BG17: 0 | BH17: 0 | BI17: 0 | BJ17: 0 | BK17: 0 | BL17: 0 | BM17: 0 | BN17: 0 | BO17: 0 | BP17: 0 | BQ17: 0 | BR17: 0 | BS17: 0 | BT17: 0 | BU17: 0 | BV17: 0 | BW17: 0 | BX17: 0 | BY17: 0 | BZ17: 0 | CA17: 0 | CB17: 0 | CC17: 0 | CD17: 0 | CE17: 0 | CF17: 0 | CG17: 0 | CH17: 0 | CI17: 0 | CJ17: 0 | CK17: 0 | CL17: 0 | CM17: 0 | CN17: 0 | CO17: 0 | CP17: 0 | CQ17: 0 | CR17: 0 | CS17: 0 | CT17: 0 | CU17: 0 | CV17: 0 | CW17: 3 | CX17: 0 | CY17: 0 | CZ17: 0 | DA17: 0 | DB17: 0 | DC17: 0 | DD17: 0 | DE17: 0 | DF17: 0 | DG17: 0 | DH17: 0 | DI17: 0
L18: MDU | M18: 5 | N18: 0 | O18: 0 | P18: 0 | Q18: 1 | R18: 0 | S18: 0 | T18: 4 | U18: 0 | V18: 0 | W18: 0 | X18: 0 | Y18: 0 | Z18: 6 | AA18: 2 | AB18: 1 | AC18: 0 | AD18: 0 | AE18: 0 | AF18: 0 | AG18: 0 | AH18: 0 | AI18: 2 | AJ18: 0 | AK18: 5 | AL18: 3 | AM18: 0 | AN18: 0 | AO18: 0 | AP18: 1 | AQ18: 1 | AR18: 0 | AS18: 0 | AT18: 0 | AU18: 0 | AV18: 0 | AW18: 18 | AX18: 0 | AY18: 0 | AZ18: 0 | BA18: 0 | BB18: 0 | BC18: 0 | BD18: 0 | BE18: 0 | BF18: 0 | BG18: 0 | BH18: 0 | BI18: 2 | BJ18: 0 | BK18: 0 | BL18: 0 | BM18: 0 | BN18: 0 | BO18: 0 | BP18: 0 | BQ18: 0 | BR18: 0 | BS18: 3 | BT18: 0 | BU18: 0 | BV18: 0 | BW18: 0 | BX18: 0 | BY18: 0 | BZ18: 0 | CA18: 0 | CB18: 0 | CC18: 0 | CD18: 1 | CE18: 1 | CF18: 0 | CG18: 0 | CH18: 0 | CI18: 0 | CJ18: 0 | CK18: 0 | CL18: 0 | CM18: 0 | CN18: 0 | CO18: 0 | CP18: 0 | CQ18: 0 | CR18: 0 | CS18: 0 | CT18: 0 | CU18: 0 | CV18: 0 | CW18: 8 | CX18: 0 | CY18: 0 | CZ18: 0 | DA18: 0 | DB18: 0 | DC18: 0 | DD18: 0 | DE18: 0 | DF18: 0 | DG18: 0 | DH18: 0 | DI18: 0
L19: PCA | M19: 4 | N19: 0 | O19: 0 | P19: 7 | Q19: 0 | R19: 0 | S19: 0 | T19: 1 | U19: 1 | V19: 0 | W19: 0 | X19: 0 | Y19: 0 | Z19: 0 | AA19: 0 | AB19: 1 | AC19: 0 | AD19: 0 | AE19: 1 | AF19: 1 | AG19: 0 | AH19: 0 | AI19: 7 | AJ19: 0 | AK19: 5 | AL19: 4 | AM19: 4 | AN19: 0 | AO19: 0 | AP19: 3 | AQ19: 0 | AR19: 0 | AS19: 0 | AT19: 0 | AU19: 0 | AV19: 0 | AW19: 18 | AX19: 0 | AY19: 0 | AZ19: 0 | BA19: 0 | BB19: 0 | BC19: 0 | BD19: 0 | BE19: 0 | BF19: 0 | BG19: 0 | BH19: 0 | BI19: 1 | BJ19: 0 | BK19: 0 | BL19: 2 | BM19: 0 | BN19: 0 | BO19: 0 | BP19: 0 | BQ19: 0 | BR19: 0 | BS19: 0 | BT19: 0 | BU19: 0 | BV19: 0 | BW19: 0 | BX19: 0 | BY19: 0 | BZ19: 0 | CA19: 0 | CB19: 0 | CC19: 0 | CD19: 3 | CE19: 2 | CF19: 0 | CG19: 0 | CH19: 0 | CI19: 0 | CJ19: 0 | CK19: 0 | CL19: 0 | CM19: 0 | CN19: 0 | CO19: 0 | CP19: 0 | CQ19: 0 | CR19: 0 | CS19: 0 | CT19: 0 | CU19: 0 | CV19: 0 | CW19: 7 | CX19: 0 | CY19: 0 | CZ19: 0 | DA19: 0 | DB19: 0 | DC19: 0 | DD19: 0 | DE19: 0 | DF19: 0 | DG19: 0 | DH19: 0 | DI19: 0
L20: BSE | M20: 0 | N20: 0 | O20: 0 | P20: 0 | Q20: 0 | R20: 0 | S20: 0 | T20: 0 | U20: 0 | V20: 0 | W20: 0 | X20: 0 | Y20: 0 | Z20: 0 | AA20: 0 | AB20: 0 | AC20: 0 | AD20: 0 | AE20: 0 | AF20: 0 | AG20: 0 | AH20: 0 | AI20: 0 | AJ20: 0 | AK20: 0 | AL20: 0 | AM20: 0 | AN20: 0 | AO20: 0 | AP20: 0 | AQ20: 0 | AR20: 0 | AS20: 0 | AT20: 0 | AU20: 0 | AV20: 0 | AW20: 18 | AX20: 0 | AY20: 0 | AZ20: 0 | BA20: 0 | BB20: 0 | BC20: 0 | BD20: 0 | BE20: 0 | BF20: 0 | BG20: 0 | BH20: 0 | BI20: 0 | BJ20: 0 | BK20: 0 | BL20: 0 | BM20: 0 | BN20: 0 | BO20: 0 | BP20: 0 | BQ20: 0 | BR20: 0 | BS20: 0 | BT20: 0 | BU20: 0 | BV20: 0 | BW20: 0 | BX20: 0 | BY20: 0 | BZ20: 0 | CA20: 0 | CB20: 0 | CC20: 0 | CD20: 0 | CE20: 0 | CF20: 0 | CG20: 0 | CH20: 0 | CI20: 0 | CJ20: 0 | CK20: 0 | CL20: 0 | CM20: 0 | CN20: 0 | CO20: 0 | CP20: 0 | CQ20: 0 | CR20: 0 | CS20: 0 | CT20: 0 | CU20: 0 | CV20: 0 | CW20: 0 | CX20: 0 | CY20: 0 | CZ20: 0 | DA20: 0 | DB20: 0 | DC20: 0 | DD20: 0 | DE20: 0 | DF20: 0 | DG20: 0 | DH20: 0 | DI20: 0
L34: Totaux | M34: =SUM(M12:M19) -> 25 | N34: =SUM(N12:N19) -> 0 | O34: =SUM(O12:O19) -> 3 | P34: 28 | Q34: 10 | R34: 2 | S34: 2 | T34: 12 | U34: 5 | V34: 0 | W34: 0 | X34: 17 | Y34: 0 | Z34: 33 | AA34: 9 | AB34: 6 | AC34: 4 | AD34: 0 | AE34: 4 | AF34: 14 | AG34: 0 | AH34: 0 | AI34: 26 | AJ34: 0 | AK34: 55 | AL34: 14 | AM34: 12 | AN34: 0 | AO34: 0 | AP34: 17 | AQ34: 3 | AR34: 0 | AS34: 0 | AT34: 0 | AU34: 0 | AV34: 0 | AW34: 144 | AX34: 0 | AY34: 0 | AZ34: 0 | BA34: 0 | BB34: 0 | BC34: 0 | BD34: 0 | BE34: 1 | BF34: 0 | BG34: 0 | BH34: 0 | BI34: 5 | BJ34: 0 | BK34: 0 | BL34: 7 | BM34: 0 | BN34: 0 | BO34: 0 | BP34: 0 | BQ34: 0 | BR34: 0 | BS34: 5 | BT34: 0 | BU34: 0 | BV34: 0 | BW34: 0 | BX34: 0 | BY34: 0 | BZ34: 0 | CA34: =SUM(CA12:CA19) -> 0 | CB34: 0 | CC34: 0 | CD34: 6 | CE34: 5 | CF34: 0 | CG34: 0 | CH34: 0 | CI34: 0 | CJ34: 0 | CK34: 0 | CL34: 0 | CM34: 0 | CN34: 0 | CO34: 0 | CP34: 0 | CQ34: 0 | CR34: 0 | CS34: 0 | CT34: 0 | CU34: 0 | CV34: 0 | CW34: 60 | CX34: 0 | CY34: 0 | CZ34: 0 | DA34: 0 | DB34: 0 | DC34: 0 | DD34: 0 | DE34: 0 | DF34: 0 | DG34: 0 | DH34: 0 | DI34: 0
L35: =W35+AH35+AS35+BD35+BO35+BZ35+CK35+CV35+DI35 -> 474 | W35: =M34+N34++O34+P34+Q34+R34+S34+T34+U34+V34+W34 -> 87 | AH35: =X34+Y34++Z34+AA34+AB34+AC34+AD34+AE34+AF34+AG34+AH34 -> 87 | AS35: =AI34+AJ34++AK34+AL34+AM34+AN34+AO34+AP34+AQ34+AR34+AS34 -> 127 | BD35: =AT34+AU34++AV34+AW34+AX34+AY34+AZ34+BA34+BB34+BC34+BD34 -> 144 | BO35: =BE34+BF34++BG34+BH34+BI34+BJ34+BK34+BL34+BM34+BN34+BO34 -> 13 | BZ35: =BP34+BQ34++BR34+BS34+BT34+BU34+BV34+BW34+BX34+BY34+BZ34 -> 5 | CK35: =CA34+CB34++CC34+CD34+CE34+CF34+CG34+CH34+CI34+CJ34+CK34 -> 11 | CV35: =CL34+CM34++CN34+CO34+CP34+CQ34+CR34+CS34+CT34+CU34+CV34 -> 0 | DI35: =CY34+CZ34++DA34+DB34+DC34+DD34+DE34+DF34+DG34+DH34+DI34 -> 0
AE36: 2 | AG36: Ré | AH36: ato
AE37: 7x | AF37: 9z | AG37: 2z | AH37: 5x
AE38: 50 | AF38: 9c | AG38: 2c | AH38: 8x
M41: falcon 7X | X41: falcon 900 easy | AI41: Falcon 2000 Easy | AT41: Falcon 8X | BE41: Falcon 900B & 900 ex | BP41: Falcon 2000 | CA41: Falcon 50 | CL41: Falcon 20 | CW41: ATO | CY41: Falcon 5X
A42: bouton de mise à jour du nombre d'heure de pilotage par avion | M42: D | N42: C | O42: S | P42: T | Q42: M | R42: F | S42: X | T42: Y | U42: P | V42: L | W42: Dfs | X42: D | Y42: C | Z42: S | AA42: T | AB42: M | AC42: F | AD42: X | AE42: Y | AF42: P | AG42: L | AH42: Dfs | AI42: D | AJ42: C | AK42: S | AL42: T | AM42: M | AN42: F | AO42: X | AP42: Y | AQ42: P | AR42: L | AS42: Dfs | AT42: D | AU42: C | AV42: S | AW42: T | AX42: M | AY42: F | AZ42: X | BA42: Y | BB42: P | BC42: L | BD42: Dfs | BE42: D | BF42: C | BG42: S | BH42: T | BI42: M | BJ42: F | BK42: X | BL42: Y | BM42: P | BN42: L | BO42: Dfs | BP42: D | BQ42: C | BR42: S | BS42: T | BT42: M | BU42: F | BV42: X | BW42: Y | BX42: P | BY42: L | BZ42: Dfs | CA42: D | CB42: C | CC42: S | CD42: T | CE42: M | CF42: F | CG42: X | CH42: Y | CI42: P | CJ42: L | CK42: Dfs | CL42: D | CM42: C | CN42: S | CO42: T | CP42: M | CQ42: F | CR42: X | CS42: Y | CT42: P | CU42: L | CV42: Dfs | CW42: ATO | CX42: VHL | CY42: D | CZ42: C | DA42: S | DB42: T | DC42: M | DD42: F | DE42: X | DF42: Y | DG42: P | DH42: L | DI42: Dfs
I43: tableau de suivi des heures de vol par Type d'avion | L43: PMI | M43: 2.8 | N43: 0 | O43: 0 | P43: 19.5 | Q43: 0 | R43: 2.5 | S43: 0 | T43: 0 | U43: 0 | V43: 0 | W43: 0 | X43: 3.9 | Y43: 0 | Z43: 14.4 | AA43: 2 | AB43: 0 | AC43: 2.2 | AD43: 0 | AE43: 0 | AF43: 13.8 | AG43: 0 | AH43: 0 | AI43: 12.4 | AJ43: 0 | AK43: 0 | AL43: 1.4 | AM43: 6 | AN43: 0 | AO43: 0 | AP43: 8.2 | AQ43: 0 | AR43: 0 | AS43: 0 | AT43: 0 | AU43: 0 | AV43: 0 | AW43: 0 | AX43: 0 | AY43: 0 | AZ43: 0 | BA43: 0 | BB43: 0 | BC43: 0 | BD43: 0 | BE43: 0 | BF43: 0 | BG43: 0 | BH43: 0 | BI43: 0 | BJ43: 0 | BK43: 0 | BL43: 2.8 | BM43: 0 | BN43: 0 | BO43: 0 | BP43: 0 | BQ43: 0 | BR43: 0 | BS43: 4.3 | BT43: 0 | BU43: 0 | BV43: 0 | BW43: 0 | BX43: 0 | BY43: 0 | BZ43: 0 | CA43: 0 | CB43: 0 | CC43: 0 | CD43: 0 | CE43: 2.8 | CF43: 0 | CG43: 0 | CH43: 0 | CI43: 0 | CJ43: 0 | CK43: 0 | CL43: 0 | CM43: 0 | CN43: 0 | CO43: 0 | CP43: 0 | CQ43: 0 | CR43: 0 | CS43: 0 | CT43: 0 | CU43: 0 | CV43: 0 | CW43: 0 | CX43: 0 | CY43: 0 | CZ43: 0 | DA43: 0 | DB43: 0 | DC43: 0 | DD43: 0 | DE43: 0 | DF43: 0 | DG43: 0 | DH43: 0 | DI43: 0
L44: PGU | M44: 19.7 | N44: 0 | O44: 0 | P44: 0 | Q44: 3.3 | R44: 0 | S44: 0 | T44: 0 | U44: 0 | V44: 0 | W44: 0 | X44: 0 | Y44: 0 | Z44: 0 | AA44: 4 | AB44: 2.3 | AC44: 0 | AD44: 0 | AE44: 0 | AF44: 0 | AG44: 0 | AH44: 0 | AI44: 0 | AJ44: 0 | AK44: 5 | AL44: 4.5 | AM44: 1.4 | AN44: 0 | AO44: 0 | AP44: 0 | AQ44: 0 | AR44: 0 | AS44: 0 | AT44: 0 | AU44: 0 | AV44: 0 | AW44: 0 | AX44: 0 | AY44: 0 | AZ44: 0 | BA44: 0 | BB44: 0 | BC44: 0 | BD44: 0 | BE44: 0 | BF44: 0 | BG44: 0 | BH44: 0 | BI44: 1.6 | BJ44: 0 | BK44: 0 | BL44: 0 | BM44: 0 | BN44: 0 | BO44: 0 | BP44: 0 | BQ44: 0 | BR44: 0 | BS44: 0 | BT44: 0 | BU44: 0 | BV44: 0 | BW44: 0 | BX44: 0 | BY44: 0 | BZ44: 0 | CA44: 0 | CB44: 0 | CC44: 0 | CD44: 0 | CE44: 0 | CF44: 0 | CG44: 0 | CH44: 0 | CI44: 0 | CJ44: 0 | CK44: 0 | CL44: 0 | CM44: 0 | CN44: 0 | CO44: 0 | CP44: 0 | CQ44: 0 | CR44: 0 | CS44: 0 | CT44: 0 | CU44: 0 | CV44: 0 | CW44: 24 | CX44: 0 | CY44: 0 | CZ44: 0 | DA44: 0 | DB44: 0 | DC44: 0 | DD44: 0 | DE44: 0 | DF44: 0 | DG44: 0 | DH44: 0 | DI44: 0
L45: DBR | M45: 2 | N45: 0 | O45: 0 | P45: 4.6 | Q45: 2.7 | R45: 0 | S45: 0 | T45: 10.5 | U45: 0 | V45: 0 | W45: 0 | X45: 0 | Y45: 0 | Z45: 23.5 | AA45: 7.4 | AB45: 2.1 | AC45: 4.5 | AD45: 0 | AE45: 2 | AF45: 12.6 | AG45: 0 | AH45: 0 | AI45: 0 | AJ45: 0 | AK45: 11.7 | AL45: 2.4 | AM45: 1.4 | AN45: 0 | AO45: 0 | AP45: 1.9 | AQ45: 0 | AR45: 0 | AS45: 0 | AT45: 0 | AU45: 0 | AV45: 0 | AW45: 0 | AX45: 0 | AY45: 0 | AZ45: 0 | BA45: 0 | BB45: 0 | BC45: 0 | BD45: 0 | BE45: 3 | BF45: 0 | BG45: 0 | BH45: 0 | BI45: 3.5 | BJ45: 0 | BK45: 0 | BL45: 2.9 | BM45: 0 | BN45: 0 | BO45: 0 | BP45: 0 | BQ45: 0 | BR45: 0 | BS45: 0 | BT45: 0 | BU45: 0 | BV45: 0 | BW45: 0 | BX45: 0 | BY45: 0 | BZ45: 0 | CA45: 0 | CB45: 0 | CC45: 0 | CD45: 4.1 | CE45: 0 | CF45: 0 | CG45: 0 | CH45: 0 | CI45: 0 | CJ45: 0 | CK45: 0 | CL45: 0 | CM45: 0 | CN45: 0 | CO45: 0 | CP45: 0 | CQ45: 0 | CR45: 0 | CS45: 0 | CT45: 0 | CU45: 0 | CV45: 0 | CW45: 25.9 | CX45: 0 | CY45: 0 | CZ45: 0 | DA45: 0 | DB45: 0 | DC45: 0 | DD45: 0 | DE45: 0 | DF45: 0 | DG45: 0 | DH45: 0 | DI45: 0
L46: OFR | M46: 26.3 | N46: 0 | O46: 0 | P46: 23 | Q46: 0 | R46: 0 | S46: 0 | T46: 10.9 | U46: 12.3 | V46: 0 | W46: 0 | X46: 38.8 | Y46: 0 | Z46: 41.6 | AA46: 0 | AB46: 0 | AC46: 0 | AD46: 0 | AE46: 0 | AF46: 0 | AG46: 0 | AH46: 0 | AI46: 8.2 | AJ46: 0 | AK46: 49.5 | AL46: 2 | AM46: 3.7 | AN46: 0 | AO46: 0 | AP46: 12.7 | AQ46: 0 | AR46: 0 | AS46: 0 | AT46: 0 | AU46: 0 | AV46: 0 | AW46: 0 | AX46: 0 | AY46: 0 | AZ46: 0 | BA46: 0 | BB46: 0 | BC46: 0 | BD46: 0 | BE46: 0 | BF46: 0 | BG46: 0 | BH46: 0 | BI46: 0 | BJ46: 0 | BK46: 0 | BL46: 0 | BM46: 0 | BN46: 0 | BO46: 0 | BP46: 0 | BQ46: 0 | BR46: 0 | BS46: 0 | BT46: 0 | BU46: 0 | BV46: 0 | BW46: 0 | BX46: 0 | BY46: 0 | BZ46: 0 | CA46: 0 | CB46: 0 | CC46: 0 | CD46: 0 | CE46: 0 | CF46: 0 | CG46: 0 | CH46: 0 | CI46: 0 | CJ46: 0 | CK46: 0 | CL46: 0 | CM46: 0 | CN46: 0 | CO46: 0 | CP46: 0 | CQ46: 0 | CR46: 0 | CS46: 0 | CT46: 0 | CU46: 0 | CV46: 0 | CW46: 24 | CX46: 0 | CY46: 0 | CZ46: 0 | DA46: 0 | DB46: 0 | DC46: 0 | DD46: 0 | DE46: 0 | DF46: 0 | DG46: 0 | DH46: 0 | DI46: 0
L47: JPL | M47: 13.8 | N47: 0 | O47: 15.6 | P47: 20 | Q47: 0.9 | R47: 0 | S47: 0 | T47: 0.9 | U47: 28.2 | V47: 0 | W47: 2.1 | X47: 3.9 | Y47: 0 | Z47: 16.8 | AA47: 3.3 | AB47: 4.8 | AC47: 0 | AD47: 0 | AE47: 0 | AF47: 2.5 | AG47: 0 | AH47: 0 | AI47: 13.6 | AJ47: 0 | AK47: 18.4 | AL47: 0 | AM47: 0 | AN47: 0 | AO47: 0 | AP47: 10.7 | AQ47: 12.5 | AR47: 0 | AS47: 0 | AT47: 0 | AU47: 0 | AV47: 0 | AW47: 0 | AX47: 0 | AY47: 0 | AZ47: 0 | BA47: 0 | BB47: 0 | BC47: 0 | BD47: 0 | BE47: 0 | BF47: 0 | BG47: 0 | BH47: 0 | BI47: 0 | BJ47: 0 | BK47: 0 | BL47: 0 | BM47: 0 | BN47: 0 | BO47: 0 | BP47: 0 | BQ47: 0 | BR47: 0 | BS47: 0 | BT47: 0 | BU47: 0 | BV47: 0 | BW47: 0 | BX47: 0 | BY47: 0 | BZ47: 0 | CA47: 0 | CB47: 0 | CC47: 0 | CD47: 0 | CE47: 0 | CF47: 0 | CG47: 0 | CH47: 0 | CI47: 0 | CJ47: 0 | CK47: 0 | CL47: 0 | CM47: 0 | CN47: 0 | CO47: 0 | CP47: 0 | CQ47: 0 | CR47: 0 | CS47: 0 | CT47: 0 | CU47: 0 | CV47: 0 | CW47: 1.8 | CX47: 0 | CY47: 0 | CZ47: 0 | DA47: 0 | DB47: 0 | DC47: 0 | DD47: 0 | DE47: 0 | DF47: 0 | DG47: 0 | DH47: 0 | DI47: 0
L48: OPE | M48: 16.4 | N48: 0 | O48: 0 | P48: 13.2 | Q48: 4 | R48: 0 | S48: 0 | T48: 3.8 | U48: 3.3 | V48: 0 | W48: 0 | X48: 5.8 | Y48: 0 | Z48: 6.2 | AA48: 0 | AB48: 4.9 | AC48: 0 | AD48: 0 | AE48: 1 | AF48: 27.3 | AG48: 0 | AH48: 0 | AI48: 10 | AJ48: 0 | AK48: 61.3 | AL48: 1.2 | AM48: 0 | AN48: 0 | AO48: 0 | AP48: 12.6 | AQ48: 0 | AR48: 0 | AS48: 0 | AT48: 0 | AU48: 0 | AV48: 0 | AW48: 0 | AX48: 0 | AY48: 0 | AZ48: 0 | BA48: 0 | BB48: 0 | BC48: 0 | BD48: 0 | BE48: 0 | BF48: 0 | BG48: 0 | BH48: 0 | BI48: 0 | BJ48: 0 | BK48: 0 | BL48: 0 | BM48: 0 | BN48: 0 | BO48: 0 | BP48: 0 | BQ48: 0 | BR48: 0 | BS48: 0 | BT48: 0 | BU48: 0 | BV48: 0 | BW48: 0 | BX48: 0 | BY48: 0 | BZ48: 0 | CA48: 0 | CB48: 0 | CC48: 0 | CD48: 0 | CE48: 0 | CF48: 0 | CG48: 0 | CH48: 0 | CI48: 0 | CJ48: 0 | CK48: 0 | CL48: 0 | CM48: 0 | CN48: 0 | CO48: 0 | CP48: 0 | CQ48: 0 | CR48: 0 | CS48: 0 | CT48: 0 | CU48: 0 | CV48: 0 | CW48: 5.7 | CX48: 0 | CY48: 0 | CZ48: 0 | DA48: 0 | DB48: 0 | DC48: 0 | DD48: 0 | DE48: 0 | DF48: 0 | DG48: 0 | DH48: 0 | DI48: 0
L49: MDU | M49: 44.6 | N49: 0 | O49: 0 | P49: 0 | Q49: 1.2 | R49: 0 | S49: 0 | T49: 20.4 | U49: 0 | V49: 0 | W49: 0 | X49: 2 | Y49: 0 | Z49: 14.5 | AA49: 6 | AB49: 2.1 | AC49: 0 | AD49: 0 | AE49: 0 | AF49: 0 | AG49: 0 | AH49: 0 | AI49: 3.2 | AJ49: 0 | AK49: 12.3 | AL49: 4.3 | AM49: 0 | AN49: 0 | AO49: 0 | AP49: 10.9 | AQ49: 3.9 | AR49: 0 | AS49: 0 | AT49: 0 | AU49: 0 | AV49: 0 | AW49: 0 | AX49: 0 | AY49: 0 | AZ49: 0 | BA49: 0 | BB49: 0 | BC49: 0 | BD49: 0 | BE49: 0 | BF49: 0 | BG49: 0 | BH49: 0 | BI49: 2.6 | BJ49: 0 | BK49: 0 | BL49: 0 | BM49: 0 | BN49: 0 | BO49: 0 | BP49: 0 | BQ49: 0 | BR49: 0 | BS49: 1 | BT49: 0 | BU49: 0 | BV49: 0 | BW49: 0 | BX49: 0 | BY49: 0 | BZ49: 0 | CA49: 0 | CB49: 0 | CC49: 0 | CD49: 1.9 | CE49: 1.5 | CF49: 0 | CG49: 0 | CH49: 0 | CI49: 0 | CJ49: 0 | CK49: 0 | CL49: 0 | CM49: 0 | CN49: 0 | CO49: 0 | CP49: 0 | CQ49: 0 | CR49: 0 | CS49: 0 | CT49: 0 | CU49: 0 | CV49: 0 | CW49: 15.4 | CX49: 0 | CY49: 0 | CZ49: 0 | DA49: 0 | DB49: 0 | DC49: 0 | DD49: 0 | DE49: 0 | DF49: 0 | DG49: 0 | DH49: 0 | DI49: 0
L50: PCA | M50: 20.4 | N50: 0 | O50: 0 | P50: 22.4 | Q50: 0 | R50: 0 | S50: 0 | T50: 1 | U50: 3.1 | V50: 0 | W50: 0 | X50: 0 | Y50: 0 | Z50: 9.5 | AA50: 0 | AB50: 1.3 | AC50: 0 | AD50: 0 | AE50: 1 | AF50: 2 | AG50: 0 | AH50: 0 | AI50: 27.6 | AJ50: 0 | AK50: 20.7 | AL50: 9.2 | AM50: 6.5 | AN50: 0 | AO50: 0 | AP50: 10.6 | AQ50: 0 | AR50: 0 | AS50: 0 | AT50: 0 | AU50: 0 | AV50: 0 | AW50: 0 | AX50: 0 | AY50: 0 | AZ50: 0 | BA50: 0 | BB50: 0 | BC50: 0 | BD50: 0 | BE50: 0 | BF50: 0 | BG50: 0 | BH50: 0 | BI50: 3.5 | BJ50: 0 | BK50: 0 | BL50: 1.7 | BM50: 0 | BN50: 0 | BO50: 0 | BP50: 0 | BQ50: 0 | BR50: 0 | BS50: 0 | BT50: 0 | BU50: 0 | BV50: 0 | BW50: 0 | BX50: 0 | BY50: 0 | BZ50: 0 | CA50: 0 | CB50: 0 | CC50: 0 | CD50: 5.9 | CE50: 2.6 | CF50: 0 | CG50: 0 | CH50: 0 | CI50: 0 | CJ50: 0 | CK50: 0 | CL50: 0 | CM50: 0 | CN50: 0 | CO50: 0 | CP50: 0 | CQ50: 0 | CR50: 0 | CS50: 0 | CT50: 0 | CU50: 0 | CV50: 0 | CW50: 3.6 | CX50: 0 | CY50: 0 | CZ50: 0 | DA50: 0 | DB50: 0 | DC50: 0 | DD50: 0 | DE50: 0 | DF50: 0 | DG50: 0 | DH50: 0 | DI50: 0
L51: BSE | M51: 0 | N51: 0 | O51: 0 | P51: 0 | Q51: 0 | R51: 0 | S51: 0 | T51: 0 | U51: 0 | V51: 0 | W51: 0 | X51: 0 | Y51: 0 | Z51: 0 | AA51: 0 | AB51: 0 | AC51: 0 | AD51: 0 | AE51: 0 | AF51: 0 | AG51: 0 | AH51: 0 | AI51: 0 | AJ51: 0 | AK51: 0 | AL51: 0 | AM51: 0 | AN51: 0 | AO51: 0 | AP51: 0 | AQ51: 0 | AR51: 0 | AS51: 0 | AT51: 0 | AU51: 0 | AV51: 0 | AW51: 0 | AX51: 0 | AY51: 0 | AZ51: 0 | BA51: 0 | BB51: 0 | BC51: 0 | BD51: 0 | BE51: 0 | BF51: 0 | BG51: 0 | BH51: 0 | BI51: 0 | BJ51: 0 | BK51: 0 | BL51: 0 | BM51: 0 | BN51: 0 | BO51: 0 | BP51: 0 | BQ51: 0 | BR51: 0 | BS51: 0 | BT51: 0 | BU51: 0 | BV51: 0 | BW51: 0 | BX51: 0 | BY51: 0 | BZ51: 0 | CA51: 0 | CB51: 0 | CC51: 0 | CD51: 0 | CE51: 0 | CF51: 0 | CG51: 0 | CH51: 0 | CI51: 0 | CJ51: 0 | CK51: 0 | CL51: 0 | CM51: 0 | CN51: 0 | CO51: 0 | CP51: 0 | CQ51: 0 | CR51: 0 | CS51: 0 | CT51: 0 | CU51: 0 | CV51: 0 | CW51: 0 | CX51: 0 | CY51: 0 | CZ51: 0 | DA51: 0 | DB51: 0 | DC51: 0 | DD51: 0 | DE51: 0 | DF51: 0 | DG51: 0 | DH51: 0 | DI51: 0
A57: 3 | B57: 12 | C57: DFS
A58: 3 | B58: 12
M64: D | N64: C | O64: S | P64: T | Q64: M | R64: F | S64: X | T64: Y | U64: P | V64: L | W64: Dfs | X64: D | Y64: C | Z64: S | AA64: T | AB64: M | AC64: F | AD64: X | AE64: Y | AF64: P | AG64: L | AH64: Dfs | AI64: D | AJ64: C | AK64: S | AL64: T | AM64: M | AN64: F | AO64: X | AP64: Y | AQ64: P | AR64: L | AS64: Dfs | AT64: D | AU64: C | AV64: S | AW64: T | AX64: M | AY64: F | AZ64: X | BA64: Y | BB64: P | BC64: L | BD64: Dfs | BE64: D | BF64: C | BG64: S | BH64: T | BI64: M | BJ64: F | BK64: X | BL64: Y | BM64: P | BN64: L | BO64: Dfs | BP64: D | BQ64: C | BR64: S | BS64: T | BT64: M | BU64: F | BV64: X | BW64: Y | BX64: P | BY64: L | BZ64: Dfs | CA64: D | CB64: C | CC64: S | CD64: T | CE64: M | CF64: F | CG64: X | CH64: Y | CI64: P | CJ64: L | CK64: Dfs | CL64: D | CM64: C | CN64: S | CO64: T | CP64: M | CQ64: F | CR64: X | CS64: Y | CT64: P | CU64: L | CV64: Dfs | CW64: ATO | CX64: VHL | CY64: D | CZ64: C | DA64: S | DB64: T | DC64: M | DD64: F | DE64: X | DF64: Y | DG64: P | DH64: L | DI64: Dfs
L65: Totaux | M65: =SUM(M43:M50) -> 146 | N65: =SUM(N43:N50) -> 0 | O65: =SUM(O43:O50) -> 15.6 | P65: 102.7 | Q65: 12.1 | R65: 2.5 | S65: 0 | T65: 47.5 | U65: 46.9 | V65: 0 | W65: 2.1 | X65: 54.4 | Y65: 0 | Z65: 126.5 | AA65: 22.7 | AB65: 17.5 | AC65: 6.7 | AD65: 0 | AE65: 4 | AF65: 58.2 | AG65: 0 | AH65: 0 | AI65: 75 | AJ65: 0 | AK65: 178.9 | AL65: 25 | AM65: 19 | AN65: 0 | AO65: 0 | AP65: 67.6 | AQ65: 16.4 | AR65: 0 | AS65: 0 | AT65: 0 | AU65: 0 | AV65: 0 | AW65: 0 | AX65: 0 | AY65: 0 | AZ65: 0 | BA65: 0 | BB65: 0 | BC65: 0 | BD65: 0 | BE65: 3 | BF65: 0 | BG65: 0 | BH65: 0 | BI65: 11.2 | BJ65: 0 | BK65: 0 | BL65: 7.4 | BM65: 0 | BN65: 0 | BO65: 0 | BP65: 0 | BQ65: 0 | BR65: 0 | BS65: 5.3 | BT65: 0 | BU65: 0 | BV65: 0 | BW65: 0 | BX65: 0 | BY65: 0 | BZ65: 0 | CA65: =SUM(CA43:CA50) -> 0 | CB65: 0 | CC65: 0 | CD65: 11.9 | CE65: 6.9 | CF65: 0 | CG65: 0 | CH65: 0 | CI65: 0 | CJ65: 0 | CK65: 0 | CL65: 0 | CM65: 0 | CN65: 0 | CO65: 0 | CP65: 0 | CQ65: 0 | CR65: 0 | CS65: 0 | CT65: 0 | CU65: 0 | CV65: 0 | CW65: 100.4 | CX65: 0 | CY65: 0 | CZ65: 0 | DA65: 0 | DB65: 0 | DC65: 0 | DD65: 0 | DE65: 0 | DF65: 0 | DG65: 0 | DH65: 0 | DI65: 0
B67: Tableau du nombre d'heure par avion et par pilote en Vol
C69: F 7X | D69: F 900 Ez | E69: F 2000 Ez | F69: F 8X | G69: F 900B & Ex | H69: F 2000 | I69: F 50 | J69: F 20 | K69: ATO
B70: PMI | C70: =SUM(M43:W43) -> 24.8 | D70: =SUM(X43:AH43) -> 36.3 | E70: =SUM(AI43:AS43) -> 28 | F70: =SUM(AT43:BD43) -> 0 | G70: =SUM(BE43:BO43) -> 2.8 | H70: =SUM(BP43:BZ43) -> 4.3 | I70: =SUM(CA43:CK43) -> 2.8 | J70: =SUM(CL43:CV43) -> 0 | K70: =CW43 -> 0
B71: PGU | C71: =SUM(M44:W44) -> 23 | D71: 6.3 | E71: =SUM(AI44:AS44) -> 10.9 | F71: =SUM(AT44:BD44) -> 0 | G71: =SUM(BE44:BO44) -> 1.6 | H71: =SUM(BP44:BZ44) -> 0 | I71: =SUM(CA44:CK44) -> 0 | J71: =SUM(CL44:CV44) -> 0 | K71: =CW44 -> 24 | L71: 2 | N71: Ré | O71: ato
B72: DBR | C72: 19.8 | D72: 52.1 | E72: 17.4 | F72: 0 | G72: 9.4 | H72: 0 | I72: 4.1 | J72: 0 | K72: 25.9 | L72: 7x | M72: 9z | N72: 2z | O72: 5x
B73: OFR | C73: 72.5 | D73: 80.4 | E73: 76.1 | F73: 0 | G73: 0 | H73: 0 | I73: 0 | J73: 0 | K73: 24 | L73: 50 | M73: 9c | N73: 2c | O73: 8x
B74: JPL | C74: 81.5 | D74: 31.3 | E74: 55.2 | F74: 0 | G74: 0 | H74: 0 | I74: 0 | J74: 0 | K74: 1.8
B75: OPE | C75: 40.7 | D75: 45.2 | E75: 85.1 | F75: 0 | G75: 0 | H75: 0 | I75: 0 | J75: 0 | K75: 5.7
B76: MDU | C76: 66.2 | D76: 24.6 | E76: 34.6 | F76: 0 | G76: 2.6 | H76: 1 | I76: 3.4 | J76: 0 | K76: 15.4
B77: PCA | C77: 46.9 | D77: 13.8 | E77: 74.6 | F77: 0 | G77: 5.2 | H77: 0 | I77: 8.5 | J77: 0 | K77: 3.6
B78: BSE | C78: =SUM(M51:W51) -> 0 | D78: =SUM(X51:AH51) -> 0 | E78: =SUM(AI51:AS51) -> 0 | F78: =SUM(AT51:BD51) -> 0 | G78: =SUM(BE51:BO51) -> 0 | H78: =SUM(BP51:BZ51) -> 0 | I78: =SUM(CA51:CK51) -> 0 | J78: =SUM(CL51:CV51) -> 0 | K78: 0
C79: 0 | D79: 0 | E79: 0 | F79: 0 | G79: 0 | H79: 0 | I79: 0 | J79: 0 | K79: 0
J81: Vols | K81: Totaux/pilote | L81: PMI | M81: =C70+D70+E70+F70+G70+H70+I70+J70+K70 -> 99
L82: PGU | M82: =C71+D71+E71+F71+G71+H71+I71+J71+K71 -> 65.8
L83: DBR | M83: 128.7
L84: OFR | M84: 253
L85: JPL | M85: 169.8
L86: OPE | M86: 176.7
L87: MDU | M87: 147.8
L88: PCA | M88: 152.6
B89: Tableau du nombre d'heure par avion et par pilote en Simulation | L89: BSE | M89: 0
M90: 0 | O90: =M81+M82+M83+M84+M85+M86+M87+M88+M89+M90 -> 1193.4
C91: F 7X | D91: F 900 Ez | E91: F 2000 Ez | F91: F 8X | G91: F 900B & Ex | H91: F 2000 | I91: F 50 | J91: F 20
B92: PMI | C92: 32 | D92: 4 | E92: 6 | F92: 0 | G92: 0 | H92: 8 | I92: 3 | J92: 0 | O92: Total / | P92: Pilote | Q92: PMI | R92: =M81+M103 -> 152
B93: PGU | C93: 3 | D93: 8 | E93: 8 | F93: 0 | G93: 0 | H93: 4 | I93: 0 | J93: 0 | Q93: PGU | R93: =M82+M104 -> 88.8
B94: DBR | C94: 22 | D94: 8 | E94: 8 | F94: 0 | G94: 0 | H94: 4 | I94: 5.4 | J94: 0 | Q94: DBR | R94: 176.1
B95: OFR | C95: 7 | D95: 0 | E95: 4 | F95: 0 | G95: 0 | H95: 0 | I95: 0 | J95: 0 | Q95: OFR | R95: 264
B96: JPL | C96: 13 | D96: 0 | E96: 12 | F96: 0 | G96: 0 | H96: 0 | I96: 0 | J96: 0 | Q96: JPL | R96: 194.8
B97: OPE | C97: 0 | D97: 8 | E97: 5.5 | F97: 0 | G97: 0 | H97: 0 | I97: 0 | J97: 0 | Q97: OPE | R97: 190.2
B98: MDU | C98: 7 | D98: 12 | E98: 0 | F98: 0 | G98: 0 | H98: 8 | I98: 0 | J98: 0 | Q98: MDU | R98: 174.8
B99: PCA | C99: 16 | D99: 4 | E99: 4 | F99: 0 | G99: 1.9 | H99: 0 | I99: 6 | J99: 0 | Q99: PCA | R99: 184.5
B100: BSE | C100: 0 | D100: 0 | E100: 0 | F100: 0 | G100: 0 | H100: 0 | I100: 0 | J100: 0 | Q100: BSE | R100: 0
C101: 0 | D101: 0 | E101: 0 | F101: 0 | G101: 0 | H101: 0 | I101: 0 | J101: 0 | R101: 0 | T101: =R92+R93+R94+R95+R96+R97+R98+R99+R100+R101 -> 1425.2
J103: Simu | K103: Totaux/pilote | L103: PMI | M103: =C92+D92+E92+F92+G92+H92+I92+J92 -> 53
L104: PGU | M104: 23
L105: DBR | M105: 47.4
L106: OFR | M106: 11
L107: JPL | M107: 25
L108: OPE | M108: 13.5
L109: MDU | M109: 27
L110: PCA | M110: 31.9
L111: BSE | M111: 0
M112: 0 | O112: =M103+M104+M105+M106+M107+M108+M109+M110+M111+M112 -> 231.8
N113: soit | O113: =O112/4 -> 57.95 | P113: jours
F116: en cours d'élaboration
B118: Tableau du nombre d'heure par Type d'activité
B119: Démo | C119: Contractuel | D119: Support | E119: Training | F119: Maintenance | G119: Factory | H119: X Statique | I119: Yconvoyage | J119: Presidence | K119: Livraison | L119: VHL Ato
B120: =M65+X65+AI65+AT65+BE65+BP65+CA65+CL65+CY65 -> 278.4 | C120: 0 | D120: 321 | E120: 167.6 | F120: 66.7 | G120: 9.2 | H120: 0 | I120: 126.5 | J120: 121.5 | K120: 0
B124: Tableau du nombre de Jour par Type d'activité
B125: Démo | C125: Contractuel | D125: Support | E125: Training | F125: Maintenance | G125: Factory | H125: X Statique | I125: Yconvoyage | J125: Presidence | K125: Livraison | L125: VHL Ato
B126: =M34+X34+AI34+AT34+BE34+BP34+CA34+CL34+CY34 -> 69 | C126: 0 | D126: 91 | E126: 206 | F126: 38 | G126: 6 | H126: 2 | I126: 40 | J126: 22 | K126: 0
